Cogmind - Beta 9.6 @@@ ROGUE MODE // 2020.06.13 @ 16:20:42 // AFD2020/Player2 Player: Valguris Result: Core destroyed Performance ------------- Evolutions (9) 4500 Regions Visited (33) 6600 Robots Destroyed (350) 1750 Value Destroyed (16099) 16099 Prototype IDs (150) 3000 Alien Tech Used (3) 600 Bonus (26839) 26839 TOTAL SCORE: 59388 Bonus ------- High Alert Combat Kills 3352 Follower Combat Kills 8545 Network Hubs Disabled 200 Aligned with FarCom 300 Met Data Miner 300 Met Zhirov 300 Met Warlord at Base 500 MAIN.C Attacked Warlord 500 Warlord Defense Kill 148 Met R17 at Cetus 500 Found Hidden Lab 3000 Met Warlord at Research 2000 Destroyed MAIN.C Guards 500 Met MAIN.C 5000 Destroyed MAIN.C Shell 5000 Friendly Fire -3306 Cogmind --------- Core Integrity 0/1600 Matter 300/300 Energy 31/1100 System Corruption 19% Temperature Cool (0) Movement Hovering (65) Location -1/Command Parts ------- > --- POWER (3) -------- (None) > --- PROPULSION (5) --- Combat Antigrav System Combat Antigrav System Combat Linear Gravjet > --- UTILITY (16) ----- Lightpack 2.0 Experimental Energy Well Experimental Targeting Computer Tactical Coordination Suite Advanced Armor Integrity Analyzer Quantum Capacitor Advanced Transmission Jammer > --- WEAPON (2) ------- (None) > --- INVENTORY (24) --- Light Quantum Reactor Advanced Cooling System Advanced Energy Well (0) Experimental Energy Well (0) Experimental Energy Well (0) Experimental Sensor Array Experimental Terrain Scanner Experimental Terrain Scan Processor Experimental Targeting Computer Experimental Focal Shield Transdimensional Reconstructor Long-range Proton Cannon Long-range Proton Cannon Proton Burst Cannon Compact HERF Cannon Compact HERF Cannon Cooled Phase Cannon Enhanced Nova Cannon Cooled Nova Cannon Compact Linear Accelerator Tesla Bomb Launcher Guided Remote Datajack Peak State ------------ > --- POWER ------------ Zero-point Reactor Vortex Chain Reactor > --- PROPULSION ------- Combat Gravmag System Cooled Antigrav System Combat Antigrav System Combat Antigrav System Combat Linear Gravjet > --- UTILITY ---------- Large Storage Unit Lightpack 2.0 Experimental Energy Well Experimental Energy Well Experimental Targeting Computer Advanced Armor Integrity Analyzer Quantum Capacitor Advanced Reaction Control System Medium Regenerative Plating Heavy Regenerative Plating Thermal Barrier AEGIS Remote Shield Deep Network Scanner > --- WEAPON ----------- Enhanced Nova Cannon Cooled Nova Cannon > --- INVENTORY -------- Light Quantum Reactor Light Quantum Reactor Zero-point Reactor Cooled Antigrav System Combat Antigrav System Advanced Cooling System Experimental Cooling System Advanced Energy Well Experimental Energy Well Experimental Matter Compressor Experimental Sensor Array Experimental Terrain Scanner Experimental Terrain Scan Processor Experimental Targeting Computer Tactical Coordination Suite Advanced Transmission Jammer Experimental Focal Shield Transdimensional Reconstructor Transdimensional Reconstructor Long-range Proton Cannon Long-range Proton Cannon Proton Burst Cannon Compact HERF Cannon Compact HERF Cannon Cooled Phase Cannon Compact Linear Accelerator Tesla Bomb Launcher Tesla Bomb Launcher Mini Smartbomb Launcher Guided Remote Datajack [Rating: 244] Favorites ----------- Power Cooled Ion Engine Engine Cooled Ion Engine Power Core Fission Core Reactor Fusion Reactor Propulsion Armored Wheel Treads Light Treads Leg Aluminum Leg Wheel Armored Wheel Hover Unit Combat Gravmag System Utility Humpback Device Advanced Terrain Scanner Storage Humpback Processor Advanced Terrain Scan Processor Hackware Advanced Hacking Suite Protection Hardened Medium Armor Plating Weapon Ion Cannon Energy Gun Improved Medium Laser Energy Cannon Ion Cannon Ballistic Gun Heavy Assault Rifle Ballistic Cannon Compact Linear Accelerator Launcher Rocket Launcher Special Weapon Improved Remote Datajack Slashing Weapon Katana Piercing Weapon Heavy Pick Special Melee Weapon Datajack Build | -11 -10 -10 -9 -9 -9 -8 -8 -7 -7 -7 -7 -6 -6 -6 -6 -6 -6 -5 -5 -5 -5 -4 -4 -4 -4 -4 -3 -3 -3 -3 -2 -1 -1 ------- Run | Scr Mat Min Mat Min Exi Min Mat Fac Low Low Dat Pro Fac Ext Cet Arc Hub Fac Upp Upp War Pro Fac Upp Upp Zhi Pro Res Arm Lab Res Acc Com Slots Evolved 18 | . . . 2 . . . 2 2 . . . . 2 . . . . 2 . . . . 2 . . . . 2 . . 2 2 . Power 2 | . . . . . . . . . . . . . 1 . . . . . . . . . . . . . . . . . . 1 . Propulsion 3 | . . . . . . . . 1 . . . . . . . . . . . . . . 2 . . . . . . . . . . Utility 13 | . . . 2 . . . 2 1 . . . . 1 . . . . 2 . . . . . . . . . 2 . . 2 1 . Weapon . | . . . . . . . . . . . . . . . . . . . . . . . . . . . . . . . . . . Parts Attached 589 | 7 1 2 20 6 11 4 24 16 15 12 . 28 13 26 21 4 9 26 7 11 21 33 32 3 9 10 20 24 56 7 53 23 35 Power 24 | 1 . . 2 . . . . 1 . . . . 1 2 1 . . 3 1 . . 1 2 . . 1 . 1 2 . 1 1 3 Engine 9 | 1 . . 2 . . . . 1 . . . . 1 2 . . . 2 . . . . . . . . . . . . . . . Core 3 | . . . . . . . . . . . . . . . . . . 1 1 . . . 1 . . . . . . . . . . Reactor 12 | . . . . . . . . . . . . . . . 1 . . . . . . 1 1 . . 1 . 1 2 . 1 1 3 Propulsion 50 | 2 . 2 4 . 5 . 1 4 2 . . . 2 2 . . . 4 . . 3 2 5 . . 2 . 1 1 . 5 . 3 Treads 10 | . . . . . 3 . 1 3 . . . . . . . . . 2 . . 1 . . . . . . . . . . . . Leg 12 | 2 . 2 4 . 2 . . 1 . . . . . 1 . . . . . . . . . . . . . . . . . . . Wheel 9 | . . . . . . . . . 2 . . . 2 1 . . . 2 . . . 2 . . . . . . . . . . . Hover 19 | . . . . . . . . . . . . . . . . . . . . . 2 . 5 . . 2 . 1 1 . 5 . 3 Flight . | . . . . . . . . . . . . . . . . . . . . . . . . . . . . . . . . . . Utility 295 | 2 1 . 9 2 4 1 9 4 9 8 . 18 5 14 9 4 4 5 . . 12 15 17 3 7 5 18 11 33 4 31 9 22 Device 209 | 1 1 . 2 . 1 1 4 1 5 6 . 12 4 9 4 2 2 3 . . 9 12 15 3 6 3 18 10 29 1 25 8 12 Storage 17 | 1 . . 1 1 1 . . . . . . . . . 1 . . . . . 1 3 1 . . 1 . . . 1 . . 5 Processor 13 | . . . 1 . . . 2 1 2 . . . . . 1 . . . . . . . 1 . . . . . . . 3 . 2 Hackware 4 | . . . . . . . 1 . . . . . . . . . . 1 . . . . . . . . . 1 . . . 1 . Protection 52 | . . . 5 1 2 . 2 2 2 2 . 6 1 5 3 2 2 1 . . 2 . . . 1 1 . . 4 2 3 . 3 Artifact . | . . . . . . . . . . . . . . . . . . . . . . . . . . . . . . . . . . Weapon 220 | 2 . . 5 4 2 3 14 7 4 4 . 10 5 8 11 . 5 14 6 11 6 15 8 . 2 2 2 11 20 3 16 13 7 Energy Gun 11 | 1 . . . 2 . . . . . . . . 1 . 2 . . 1 1 . 1 . . . . . . . . 2 . . . Energy Cannon 118 | . . . . . . . 8 4 . 4 . 3 3 5 6 . 2 11 3 5 3 11 7 . . 1 2 10 9 1 10 7 3 Ballistic Gun 12 | 1 . . 3 1 . 2 1 . . . . . . . 1 . 3 . . . . . . . . . . . . . . . . Ballistic Cannon 2 | . . . . . . . . . . . . . . . . . . . . . . . . . . . . . . . 1 . 1 Launcher 52 | . . . 2 1 1 1 1 1 3 . . 4 . 2 2 . . 2 1 6 . 3 1 . 1 . . 1 7 . 3 6 3 Special Weapon 13 | . . . . . . . . . 1 . . . . 1 . . . . 1 . 2 1 . . 1 1 . . 4 . 1 . . Impact Weapon . | . . . . . . . . . . . . . . . . . . . . . . . . . . . . . . . . . . Slashing Weapon 2 | . . . . . . . . 2 . . . . . . . . . . . . . . . . . . . . . . . . . Piercing Weapon 5 | . . . . . . . . . . . . 3 1 . . . . . . . . . . . . . . . . . 1 . . Special Melee Weapon 5 | . . . . . 1 . 4 . . . . . . . . . . . . . . . . . . . . . . . . . . Unidentified Prototypes 46 | . . . 1 . . . 1 . 1 . . . 1 . 4 . . 4 1 . 3 1 . . 2 4 . 4 1 3 8 1 6 Parts Lost 42 | . . . 1 . . . 1 1 . . . 1 . 7 3 . 2 . . . . 1 1 . . . 1 . 2 . 2 . 19 Power 10 | . . . . . . . . . . . . . . 2 1 . 2 . . . . . 1 . . . . . . . . . 4 Propulsion 6 | . . . . . . . . 1 . . . . . 1 . . . . . . . . . . . . . . . . . . 4 Utility 18 | . . . 1 . . . 1 . . . . . . 2 . . . . . . . 1 . . . . 1 . 2 . 2 . 8 Weapon 8 | . . . . . . . . . . . . 1 . 2 2 . . . . . . . . . . . . . . . . . 3 Highest Loss Streak 15 | . . . 1 . . . 1 1 . . . 1 . 5 2 . 2 . . . . 1 1 . . . 1 . 1 . 1 . 15 Average Slot Usage (%) 90 | . 99 99 98 100 89 88 89 90 86 83 84 84 80 83 90 93 92 92 94 94 93 90 93 94 93 93 93 92 85 84 86 83 82 Engine 6 | . 14 14 11 11 11 11 9 7 7 7 7 7 13 12 10 6 5 7 5 5 5 5 1 . . . . . . . . . . Reactor 2 | . . . . . . . . . . . . . . . 1 6 5 . . . . 2 6 5 5 8 10 9 9 9 8 7 6 Treads 5 | . . . . . 11 22 18 21 14 . . . . . . . . 4 5 5 4 . . . . . . . . . . . . Leg 4 | . 28 27 22 22 10 . . 1 . . . . . . 6 6 6 . . . . . . . . . . . . . . . . Wheel 4 | . . . . . . . . . 5 15 15 15 12 12 13 13 13 10 11 11 11 11 . . . . . . . . . . . Hover 5 | . . . . . . . . . . . . . . . . . . . . . . 4 25 26 26 26 26 23 23 23 20 19 18 Device 16 | . 13 14 10 8 5 11 17 15 13 14 15 17 13 13 15 17 20 22 23 23 22 21 20 21 20 14 14 16 16 16 24 23 24 Storage 8 | . 14 14 11 13 12 11 9 7 7 7 7 7 6 6 6 6 6 5 5 5 5 5 10 10 10 10 10 9 9 11 8 7 7 Processor 8 | . . . 2 . . . 8 11 21 15 15 15 13 13 13 13 13 11 11 11 11 11 10 10 10 10 10 9 4 4 7 7 5 Hackware 2 | . . . . . . . . . . . . . . . . . . 4 5 5 5 5 5 5 5 5 5 9 6 4 4 6 3 Protection 7 | . . . 18 22 16 11 9 9 . 7 7 5 7 9 9 8 6 5 5 5 4 2 . . . 5 5 4 4 4 4 3 4 Energy Gun 1 | . 14 14 . 7 . . . . . . . . . . 2 6 1 . . . . . . . . . . . . . . . . Energy Cannon 6 | . . . . . . . 16 13 3 6 15 9 11 12 9 6 2 9 10 9 5 10 9 5 5 3 9 8 7 9 7 6 6 Ballistic Gun 3 | . 14 14 19 11 11 5 1 . . . . . . . . . 7 1 . . . . . . . . . . . . . . . Launcher 2 | . . . 1 3 . 16 . . 11 8 . 4 . . . . . . . 1 . . . 5 5 5 . . . . . . . Naked Turns . | . . . . . . . . . . . . . . . . . . . . . . . . . . . . . . . . . . Heaviest Build 168 | 14 14 14 64 78 108 106 118 119 119 118 110 118 127 127 130 134 134 136 137 137 147 168 97 90 78 78 95 97 104 105 120 131 157 Greatest Support 137 | 20 20 20 20 20 40 40 40 60 60 40 40 40 40 40 24 24 24 24 24 24 24 36 115 115 115 115 115 115 115 115 137 137 137 Greatest Overweight (x) 6 | 3 . . 3 3 5 2 2 2 2 2 2 2 3 4 5 5 5 5 5 5 6 6 . . . . . . . . . . 1 Average Overweight (x) 1 | . . . 1 3 3 2 2 1 1 2 2 2 2 2 4 5 4 4 5 5 5 5 . . . . . . . . . . . Largest Inventory Capacity 50 | 6 6 6 12 18 38 24 24 24 24 24 24 24 24 24 44 24 24 24 24 24 44 30 50 30 30 30 30 30 30 36 36 30 30 Average Capacity 23 | 5 6 6 11 13 23 24 24 24 24 24 24 24 24 24 24 24 24 24 24 24 24 24 30 30 30 30 30 30 30 32 30 30 29 Most Carried 33 | 6 6 6 12 16 24 24 24 24 24 23 23 24 24 24 24 24 24 24 24 24 24 30 30 30 30 30 30 30 30 33 32 30 30 Average Carried 23 | 3 4 5 9 13 22 23 23 23 23 22 23 22 23 22 23 22 23 23 23 24 22 24 29 30 30 29 29 29 29 31 29 28 28 Final Capacity 36 | 6 6 6 12 18 24 24 24 24 24 24 24 24 24 24 24 24 24 24 24 24 24 30 30 30 30 30 30 30 30 36 30 30 24 Final Carried 33 | 6 6 6 12 16 24 24 24 23 23 23 23 23 24 24 23 23 24 24 24 24 24 30 30 30 30 30 30 30 30 33 30 29 22 Class Distribution -------------------- 45% | Hauler-Mutant 12% | Hauler-Skirmisher 11% | Scavenger-Mutant 10% | Hauler-Scout 6% | Mutant 3% | Scavenger-Scout Dominant Class ---------------- Mutant | -10/Materials Mutant | -10/Mines Scavenger-Mutant | -9/Materials Scavenger-Mutant | -9/Mines Hauler-Mutant | -9/Exiles Hauler-Mutant | -8/Mines Hauler-Mutant | -8/Materials Hauler-Mutant | -7/Factory Hauler-Skirmisher | -7/Lower Caves Hauler-Mutant | -7/Lower Caves Hauler-Skirmisher | -7/Data Miner Hauler-Mutant | -6/Proximity Caves Hauler-Mutant | -6/Factory Hauler-Mutant | -6/Extension Scavenger-Mutant | -6/Cetus Hauler-Skirmisher | -6/Archives Scavenger-Skirmisher | -6/Hub_04(d) Hauler-Skirmisher | -5/Factory Hauler-Mutant | -5/Upper Caves Hauler-Mutant | -5/Upper Caves Hauler-Mutant | -5/Warlord Scavenger-Mutant | -4/Proximity Caves Scavenger-Scout | -4/Factory Hauler-Scout | -4/Upper Caves Hauler-Scout | -4/Upper Caves Hauler-Scout | -4/Zhirov Scavenger-Scout | -3/Proximity Caves Scavenger-Scout | -3/Research Hauler-Scout | -3/Armory Hauler-Mutant | -3/Lab Hauler-Scout | -2/Research Generator-Scout | -1/Access Generator-Mutant | -1/Command Resources | -11 -10 -10 -9 -9 -9 -8 -8 -7 -7 -7 -7 -6 -6 -6 -6 -6 -6 -5 -5 -5 -5 -4 -4 -4 -4 -4 -3 -3 -3 -3 -2 -1 -1 ----------- Run | Scr Mat Min Mat Min Exi Min Mat Fac Low Low Dat Pro Fac Ext Cet Arc Hub Fac Upp Upp War Pro Fac Upp Upp Zhi Pro Res Arm Lab Res Acc Com Matter Collected 12632 | 276 49 71 525 283 . 271 299 115 510 214 . 440 311 1935 218 50 405 405 136 187 388 360 355 190 600 94 574 361 810 160 751 282 1007 Remotely 194 | 74 49 71 . . . . . . . . . . . . . . . . . . . . . . . . . . . . . . . Salvage Created 15411 | 61 238 154 492 107 . 221 506 171 24 16 . 307 141 991 427 90 898 463 321 372 61 923 267 103 650 94 233 598 2688 . 1226 1315 1253 Parts 701 | 2 18 21 46 14 . 27 45 12 1 2 . 19 11 43 13 4 38 17 4 12 1 21 14 2 22 . 18 22 112 . 42 47 51 Haulers Intercepted 12 | . 1 . 3 . . . 1 1 . . . . . . . . 2 2 . . . . . . 1 . . . . . . 1 . Recyclers Shooed 5 | . . . 2 1 . . . . . . . . . . . . . 2 . . . . . . . . . . . . . . . Parts Field Recycled . | . . . . . . . . . . . . . . . . . . . . . . . . . . . . . . . . . . Retrieved Matter . | . . . . . . . . . . . . . . . . . . . . . . . . . . . . . . . . . . Parts Self-Destructed 172 | . . . . . . . . . . 8 . 19 . . . . . . 3 10 59 46 . 1 11 . 15 . . . . . . Prevented 49 | . . . . . . . . . . . . . . . . . . . 4 10 5 28 . . . . 2 . . . . . . Kills | -11 -10 -10 -9 -9 -9 -8 -8 -7 -7 -7 -7 -6 -6 -6 -6 -6 -6 -5 -5 -5 -5 -4 -4 -4 -4 -4 -3 -3 -3 -3 -2 -1 -1 ------- Run | Scr Mat Min Mat Min Exi Min Mat Fac Low Low Dat Pro Fac Ext Cet Arc Hub Fac Upp Upp War Pro Fac Upp Upp Zhi Pro Res Arm Lab Res Acc Com Combat Hostiles Destroyed 282 | . 3 8 14 17 . 13 10 3 2 2 . 14 2 16 9 1 5 7 1 9 1 5 8 4 21 . 9 5 41 . 14 20 18 Guns 28 | . 3 8 7 3 . 1 . . . . . . . . . . 5 1 . . . . . . . . . . . . . . . Cannons 63 | . . . . . . . 7 3 . 1 . . 2 12 2 1 . . . 1 1 4 . . 1 . 1 4 10 . 5 6 2 AOE 148 | . . . 7 14 . 12 3 . 2 1 . 14 . 4 4 . . 5 . 6 . . 5 4 20 . 8 . 17 . 3 5 14 Classes Destroyed 23 | 1 3 1 2 1 . 2 1 1 . . . . . 1 1 . . 1 1 . . 2 . . . . . . 3 . 2 . . Worker 10 | . . . 2 . . . 1 . . . . . 1 2 . . 4 . . . . . . . . . . . . . . . . Builder 5 | . . . . . . 1 . 1 . . . . . . . . 2 . . . . . . . . . . . . . . 1 . Tunneler 2 | . . . . . . . . . . . . . . . . . . 1 . . . . . . . . . . . . 1 . . Hauler 12 | . 1 . 3 . . . 1 1 . . . . . . . . 2 2 . . . . . . 1 . . . . . . 1 . Recycler 6 | 1 . . . . . 1 . . . . . . . 1 . . 2 . . . . . . . . . . 1 . . . . . Minesweeper 1 | . . . . . . . . . . . . . . . . . . . 1 . . . . . . . . . . . . . . Mechanic 2 | . . . . . . . . . . . . . . 1 . . . . . . . . . . . . . . 1 . . . . Operator 4 | . . . . . . . 3 . . . . . . . . . . 1 . . . . . . . . . . . . . . . Watcher 24 | . 2 . 1 . . . 2 . . . . . . 3 . . 1 2 . . . . . . . . . 2 5 . 2 4 . Swarmer 119 | . . 7 10 8 . 10 5 1 . 1 . 12 . 2 4 . . 5 . 3 . 1 5 2 10 . 7 . 10 . 1 4 11 Saboteur 1 | . . . . . . . . . . . . . . . . . . . . . . . . . . . . . 1 . . . . Grunt 63 | . 3 1 4 1 . 2 2 1 2 . . 2 . 9 1 . 2 1 . 6 . . . 2 5 . . . 12 . 2 4 1 Brawler 6 | . . . . . . . . . . . . . . . 1 . . . . . 1 . . . . . . . 1 . 1 2 . Duelist 1 | . . . . . . . . . . . . . . . . . . . . . . . . . . . . . 1 . . . . Protector 4 | . . . . . . . . . . . . . . . . . . . . . . 1 . . . . . . 1 . 1 1 . Sentry 21 | . . . 1 . . . 3 . . . . . 1 4 . 1 2 . . . . . 1 . . . . 2 3 . 2 1 . Demolisher 2 | . . . . . . . . . . . . . . . . . . . . . . 2 . . . . . . . . . . . Specialist 2 | . . . . . . . . . . . . . . . . . . . . . . . . . . . . . 2 . . . . Hunter 26 | . . . . . . 1 . . . . . . . 1 . . . 1 1 . . . 1 . 5 . 1 2 3 . 3 5 2 Programmer 20 | . . . . . . . . 1 . 1 . . 1 . . . 1 . . . . 1 1 . 1 . 1 1 7 . 1 3 . Cetus Guard 3 | . . . . . . . . . . . . . . . 3 . . . . . . . . . . . . . . . . . . M Guard 2 | . . . . . . . . . . . . . . . . . . . . . . . . . . . . . . . . . 2 Combat Programmer 2 | . . . . . . . . . . . . . . . . . . . . . . . . . . . . . . . . . 2 Striker 2 | . . . . . . . . . . . . . . . . . . . . . . . . . . . . . . . 2 . . Executioner 1 | . . . . . . . . . . . . . . . . . . . . . . . . . . . . . . . 1 . . Assembled 8 | . . . . 8 . . . . . . . . . . . . . . . . . . . . . . . . . . . . . Savage 1 | . . . . . . . . . . . . . . . 1 . . . . . . . . . . . . . . . . . . Best Kill Streak 12 | 1 3 3 9 5 . 6 4 2 2 1 . 3 2 5 4 1 7 5 1 3 1 2 5 2 6 . 4 3 11 . 4 7 12 Combat Bots Only 12 | . 2 3 7 5 . 4 4 1 2 1 . 3 1 2 4 1 2 5 1 3 1 2 5 2 6 . 4 1 10 . 4 6 12 Max Kills in Single Turn 12 | 1 1 1 3 2 . 6 3 1 2 1 . 2 1 3 3 1 5 2 1 2 1 1 3 2 3 . 4 1 3 . 2 3 12 Gunslinging 1 | . . . . 1 . . . . . . . . . . . . . . . . . . . . . . . . . . . . . Exploded 12 | . . . 3 2 . 4 3 . 2 1 . 2 . 2 2 . . 2 . 2 . . 3 2 3 . 4 . 3 . 1 3 12 Melee . | . . . . . . . . . . . . . . . . . . . . . . . . . . . . . . . . . . Uniques/NPCs Destroyed 1 | . . . . . . . . . . . . . . . . . . . . . . . . . . . . . . . . . 1 MAIN.C Shell (-1/Command) Combat | -11 -10 -10 -9 -9 -9 -8 -8 -7 -7 -7 -7 -6 -6 -6 -6 -6 -6 -5 -5 -5 -5 -4 -4 -4 -4 -4 -3 -3 -3 -3 -2 -1 -1 -------- Run | Scr Mat Min Mat Min Exi Min Mat Fac Low Low Dat Pro Fac Ext Cet Arc Hub Fac Upp Upp War Pro Fac Upp Upp Zhi Pro Res Arm Lab Res Acc Com Damage Taken 13483 | . 15 127 452 331 . 118 217 209 18 116 . 718 92 1351 527 75 494 141 148 287 . 804 174 . 131 . 186 265 717 . 347 401 5022 Core 1143 | . . 32 34 39 . 31 26 16 . 30 . 113 33 127 28 . 80 . 7 . . 55 19 . . . 33 14 25 . . . 401 Absorbed by Shields 3530 | . . . . . . 35 65 . . . . . . . . . . 82 82 205 . 271 64 . . . 23 37 53 . 203 382 2028 Core Remaining (%) 73 | 100 . 76 . . . 50 90 . . . . 75 . . . . 4 . . . . 86 . . . . 92 . . 64 100 . . Volleys Fired 1044 | 2 13 17 58 29 . 9 36 24 3 8 . 25 8 60 21 6 47 27 15 23 18 46 21 8 35 6 25 29 155 15 67 95 93 Largest 2 | 2 2 2 2 2 . 2 2 2 2 2 . 2 2 2 2 2 2 2 2 2 1 2 2 1 1 1 2 2 1 1 1 2 1 Hottest 180 | 60 60 60 60 79 . 66 120 135 66 135 . 135 135 135 112 111 111 180 162 162 90 180 180 80 90 90 180 175 94 40 94 120 120 Shots Fired 1457 | 4 26 34 111 40 . 17 71 46 5 10 . 34 16 106 38 12 91 49 28 36 18 81 33 8 35 6 38 38 155 15 67 98 91 Gun 314 | 4 26 34 108 23 . 2 4 . . . . . . . 6 6 87 14 . . . . . . . . . . . . . . . Cannon 941 | . . . . . . . 66 45 . 8 . 18 16 92 29 6 4 32 27 28 6 76 31 . 9 4 30 38 121 15 60 92 88 Launcher 157 | . . . 3 17 . 15 1 1 4 2 . 16 . 5 3 . . 3 . 8 . 2 2 8 26 . 8 . 20 . 4 6 3 Special 45 | . . . . . . . . . 1 . . . . 9 . . . . 1 . 12 3 . . . 2 . . 14 . 3 . . Kinetic 266 | 2 13 17 99 12 . 2 4 . . . . . . . . . 86 14 . . . . . . . . . . . . . . 17 Thermal 559 | . . . . 11 . . 66 45 . 8 . 18 16 92 . . 3 15 . 2 6 27 16 . 9 4 30 13 46 15 21 37 59 Explosive 129 | . . . 3 17 . 15 1 1 4 2 . 16 . 5 3 . . 3 . 6 . . 2 8 26 . 8 . 6 . 1 . 2 Electromagnetic 458 | 2 13 17 9 . . . . . . . . . . . 35 12 2 17 27 28 . 51 15 . . . . 25 89 . 42 61 13 Robot Hit Streak 36 | 3 5 7 10 4 . 4 14 8 3 3 . 12 11 7 12 6 11 7 8 4 9 14 5 . 3 3 5 6 13 . 6 8 36 Robot Miss Streak 7 | 1 3 2 5 4 . . 4 2 1 3 . 2 1 3 2 3 4 2 2 3 1 4 2 . 1 1 3 2 3 . 4 7 2 Penetration Max 1 | . . . . . . . . . . . . . . . . . 1 . . . . . . . . . . . . . . . . Secondary Targets 3 | . 1 1 . 1 . . . . . . . . . . . . . . . . . . . . . . . . . . . . . Max Gunslinging Chain 1 | . 1 1 . 1 . . . . . . . . . . . . . . . . . . . . . . . . . . . . . Capacitor 365 | . . . . . . . . . . . . . . . . . . . . . . . . . . . . 20 114 15 54 91 71 Shots Hit Robots 858 | 3 15 20 63 17 4 2 46 33 4 3 . 19 14 74 27 8 54 30 19 15 14 56 18 . 4 5 15 22 96 . 33 43 82 Core Hits 614 | 2 9 11 27 26 . 25 26 8 5 2 . 33 6 42 20 4 34 17 6 14 2 26 6 13 46 1 15 13 63 . 22 27 63 Critical Hits 18 | . . . 2 . . . 1 . . . . . . 1 . . 6 1 1 1 . 2 . . . . 1 . 1 . . . 1 Critical Kills 4 | . . . . . . . . . . . . . . . . . 1 . . . . 2 . . . . . . 1 . . . . Critical Parts Destroyed 12 | . . . 2 . . . 1 . . . . . . 1 . . 3 1 1 1 . . . . . . 1 . . . . . 1 Melee Attacks 17 | . . . . . 4 . 2 4 . . . 6 1 . . . . . . . . . . . . . . . . . . . . Impact . | . . . . . . . . . . . . . . . . . . . . . . . . . . . . . . . . . . Slashing 4 | . . . . . . . . 4 . . . . . . . . . . . . . . . . . . . . . . . . . Piercing 7 | . . . . . . . . . . . . 6 1 . . . . . . . . . . . . . . . . . . . . Sneak Attacks 6 | . . . . . 4 . 1 1 . . . . . . . . . . . . . . . . . . . . . . . . . Combat Hostiles . | . . . . . . . . . . . . . . . . . . . . . . . . . . . . . . . . . . Follow-up Attacks . | . . . . . . . . . . . . . . . . . . . . . . . . . . . . . . . . . . Damage Inflicted 48002 | 52 250 246 1275 1294 . 1174 1271 828 491 263 . 1943 366 2486 964 167 2322 1844 698 1334 98 2083 1194 976 4048 163 2076 1067 6630 . 2045 3115 5239 Guns 3803 | 52 250 246 967 197 . 13 48 . . . . . . . 85 65 1696 184 . . . . . . . . . . . . . . . Cannons 21348 | . . . . . . . 912 664 . 87 . 356 366 1643 392 102 . 938 635 387 98 1774 610 . 138 163 531 1067 3681 . 1422 2133 3249 Explosions 22558 | . . . 308 1097 . 1161 213 . 460 176 . 1587 . 843 487 . 626 722 63 947 . 309 584 976 3910 . 1545 . 2949 . 623 982 1990 Melee 125 | . . . . . . . . 125 . . . . . . . . . . . . . . . . . . . . . . . . . Ramming 168 | . . . . . . . 98 39 31 . . . . . . . . . . . . . . . . . . . . . . . . Kinetic 3880 | 26 134 156 864 113 . 13 48 . . . . . . . . . 1696 184 . . . . . . . . . . . . . . 646 Thermal 13009 | . . . 30 84 . 148 912 664 . 87 . 356 366 1643 . . . 314 63 . 98 659 296 . 193 163 531 306 1596 . 525 1063 2912 Explosive 16798 | . . . 278 1097 . 1013 213 . 460 176 . 1587 . 843 487 . . 722 . 677 . . 584 976 3855 . 1545 . 1102 . 158 . 1025 Electromagnetic 14022 | 26 116 90 103 . . . . . . . . . . . 477 167 626 624 635 657 . 1424 314 . . . . 761 3932 . 1362 2052 656 Impact . | . . . . . . . . . . . . . . . . . . . . . . . . . . . . . . . . . . Slashing 125 | . . . . . . . . 125 . . . . . . . . . . . . . . . . . . . . . . . . . Piercing . | . . . . . . . . . . . . . . . . . . . . . . . . . . . . . . . . . . Highest Corruption 19 | . . . . . . . . 3 3 3 3 3 . . . . 1 3 3 3 9 2 2 . . . 2 . 3 3 2 2 19 Average Corruption 3 | . . . . . . . . 2 3 3 3 2 . . . . 1 2 3 3 6 1 1 . . . 1 . 1 3 2 1 12 Corruption Purged 5 | . . . . . . . . . . . . 3 . . . . . . . . . . 2 . . . . . . . . . . Effects 207 | . . . . . . . . 18 25 14 3 6 . . . . . 14 27 25 1 6 . . . . 5 . 6 4 12 3 38 Message Errors 52 | . . . . . . . . 4 10 1 . 2 . . . . . 5 6 7 . 2 . . . . 1 . . 2 5 1 6 Matter Fused 42 | . . . . . . . . 4 6 6 . . . . . . . 4 10 7 . . . . . . . . . . . . 5 Heat Flow Errors 31 | . . . . . . . . 5 1 3 . 2 . . . . . 2 6 5 . 1 . . . . 1 . . . 3 1 1 Energy Discharges 25 | . . . . . . . . 2 3 3 2 2 . . . . . 1 3 2 1 1 . . . . 1 . 1 1 1 . 1 Data Loss (minor) 26 | . . . . . . . . 1 5 1 1 . . . . . . . 2 4 . 1 . . . . 1 . 3 . 3 1 3 Data Loss (major) 1 | . . . . . . . . . . . . . . . . . . . . . . . . . . . . . . . . . 1 Alerts 2 | . . . . . . . . . . . . . . . . . . . . . . . . . . . . . . . . . 2 Misdirections 5 | . . . . . . . . . . . . . . . . . . . . . . . . . . . . . . . . . 5 Targeting Errors 21 | . . . . . . . . 2 . . . . . . . . . 2 . . . 1 . . . . 1 . 2 1 . . 12 Weapon Failures 2 | . . . . . . . . . . . . . . . . . . . . . . . . . . . . . . . . . 2 Overload Shots . | . . . . . . . . . . . . . . . . . . . . . . . . . . . . . . . . . . Overflow Damage 1928 | . . . . 21 . 7 12 23 42 38 . 72 . 17 52 . 25 294 123 13 . 16 25 . 353 . 156 79 275 . 138 101 46 Projectiles 944 | . . . . . . . 9 23 . 23 . . . 10 . . . 185 66 11 . 16 17 . 54 . 17 79 162 . 138 101 33 Explosions 973 | . . . . 21 . 7 . . 34 15 . 72 . 7 52 . 25 109 57 2 . . 8 . 299 . 139 . 113 . . . 13 Melee 11 | . . . . . . . 3 . 8 . . . . . . . . . . . . . . . . . . . . . . . . Knockbacks 6 | . . . . . . . 1 . . . . . . . . . . . . . . . . . . . . . . . . . 5 Impact 1 | . . . . . . . 1 . . . . . . . . . . . . . . . . . . . . . . . . . . Kinetic 5 | . . . . . . . . . . . . . . . . . . . . . . . . . . . . . . . . . 5 Secondary . | . . . . . . . . . . . . . . . . . . . . . . . . . . . . . . . . . . Self-Inflicted Damage 521 | . . . . 96 . 33 . . . 39 . 106 . . 24 . 87 . 29 66 . . . . . . . . 10 . . 31 . Shots 16 | . . . . 4 . 1 . . . 1 . 4 . . 1 . 1 . 1 1 . . . . . . . . 1 . . 1 . Rammed 19 | . . . . . . . 11 5 3 . . . . . . . . . . . . . . . . . . . . . . . . Targets Rammed 21 | . . . . . . . 12 6 3 . . . . . . . . . . . . . . . . . . . . . . . . Kicked . | . . . . . . . . . . . . . . . . . . . . . . . . . . . . . . . . . . Crushed 2 | . . . . . . . 1 1 . . . . . . . . . . . . . . . . . . . . . . . . . Highest Temperature 382 | . 9 9 18 . . 24 45 225 125 211 . 228 57 45 5 8 20 99 244 198 24 273 315 146 324 96 252 216 313 8 326 346 382 Average Temperature 80 | . 9 9 12 . . 9 13 72 33 64 . 82 19 10 3 4 10 35 67 49 9 93 126 67 82 48 79 43 106 4 95 128 104 Received Heat Transfer 1250 | . 9 9 102 6 . . 69 54 9 . . 87 9 312 36 9 99 . 17 73 . 86 . . 9 . . . 16 . 4 . 235 Effects 8 | . . . . . . . . . . . . . . . . . . . . . . . . . . . 1 . 5 . . 1 1 Energy Bleed 4 | . . . . . . . . . . . . . . . . . . . . . . . . . . . 1 . 2 . . . 1 Interference 3 | . . . . . . . . . . . . . . . . . . . . . . . . . . . . . 3 . . . . Matter Decay 1 | . . . . . . . . . . . . . . . . . . . . . . . . . . . . . . . . 1 . Siege Activations . | . . . . . . . . . . . . . . . . . . . . . . . . . . . . . . . . . . Robots Corrupted 57 | . . . . . . . . . . . . . . . 3 . 1 1 3 2 . 6 2 . . . . 1 18 . 8 10 2 Combat Hostiles 43 | . . . . . . . . . . . . . . . 3 . . 1 2 2 . 1 2 . . . . 1 14 . 6 9 2 Parts Fried 106 | . 2 . . . . . . . . . . . . . 4 . 3 9 5 2 . 5 2 . . . . 3 43 . 15 9 4 Impact Corruptions 3 | . . . . . . . 1 . 2 . . . . . . . . . . . . . . . . . . . . . . . . Robots Melted 1 | . . . . . . . . . . . . . . . . . . . . . . . 1 . . . . . . . . . . Combat Hostiles 1 | . . . . . . . . . . . . . . . . . . . . . . . 1 . . . . . . . . . . Parts Melted 18 | . . . . . . . 2 . . . . . 1 . . . . . . . . 1 2 . . . . 4 5 . 2 . 1 Heat Transferred 13300 | . . . 50 185 . 200 1415 1036 . 111 . 518 555 2516 . . . 400 50 . 150 950 350 . 280 200 618 259 1173 . 483 729 1072 Parts Sabotaged . | . . . . . . . . . . . . . . . . . . . . . . . . . . . . . . . . . . Parts Stolen . | . . . . . . . . . . . . . . . . . . . . . . . . . . . . . . . . . . Parts Stripped . | . . . . . . . . . . . . . . . . . . . . . . . . . . . . . . . . . . Power Chain Reactions 10 | . . . 1 . . . . . . . . . . . . . . . 1 . . . . . . . . . 3 . 2 1 2 Missiles Intercepted . | . . . . . . . . . . . . . . . . . . . . . . . . . . . . . . . . . . Alert | -11 -10 -10 -9 -9 -9 -8 -8 -7 -7 -7 -7 -6 -6 -6 -6 -6 -6 -5 -5 -5 -5 -4 -4 -4 -4 -4 -3 -3 -3 -3 -2 -1 -1 ------- Run | Scr Mat Min Mat Min Exi Min Mat Fac Low Low Dat Pro Fac Ext Cet Arc Hub Fac Upp Upp War Pro Fac Upp Upp Zhi Pro Res Arm Lab Res Acc Com Peak Influence 2017 | 5 197 383 544 428 . 262 424 419 . . . . 359 601 571 366 1153 1029 . . . . 573 . . . . 705 2017 . 528 1671 410 Average Influence 361 | 1 135 263 242 269 . 130 152 259 . . . . 223 333 388 353 431 651 . . . . 358 . . . . 270 1239 . 171 852 267 Maximum Alert Level 5 | . . 1 2 2 . 1 2 2 . . . . 1 2 2 1 4 3 . . . . 2 . . . . 3 5 . 2 5 2 Low Security (%) 37 | 100 100 22 39 36 . 98 62 23 . . . . 45 35 . . 41 . . . . . 14 . . . . 44 . . 64 . 18 Level 1 33 | . . 77 44 42 . 1 28 75 . . . . 54 26 66 100 8 . . . . . 42 . . . . 42 10 . 24 9 80 Level 2 19 | . . . 15 21 . . 8 . . . . . . 37 33 . 26 79 . . . . 42 . . . . 12 21 . 11 31 . Level 3 4 | . . . . . . . . . . . . . . . . . 19 20 . . . . . . . . . . 10 . . 40 . Level 4 . | . . . . . . . . . . . . . . . . . 3 . . . . . . . . . . . 7 . . 10 . Level 5 3 | . . . . . . . . . . . . . . . . . . . . . . . . . . . . . 50 . . 8 . High Security . | . . . . . . . . . . . . . . . . . . . . . . . . . . . . . . . . . . Max Security . | . . . . . . . . . . . . . . . . . . . . . . . . . . . . . . . . . . Squads Dispatched 53 | . . . 1 . . . 4 4 . . . . 4 4 . . 5 6 . . . . 1 . . . . 3 11 . 1 9 . Investigation 12 | . . . . . . . 3 1 . . . . . 1 . . . 2 . . . . 1 . . . . 1 1 . 1 1 . Extermination 13 | . . . . . . . . 2 . . . . 1 . . . 2 2 . . . . . . . . . 1 3 . . 2 . Reinforcement 15 | . . . 1 . . . 1 1 . . . . 3 1 . . 2 1 . . . . . . . . . 1 1 . . 3 . Assault 13 | . . . . . . . . . . . . . . 2 . . 1 1 . . . . . . . . . . 6 . . 3 . Garrison . | . . . . . . . . . . . . . . . . . . . . . . . . . . . . . . . . . . Intercept . | . . . . . . . . . . . . . . . . . . . . . . . . . . . . . . . . . . Construction Impeded 4 | . . . . . . . . . . . . . 1 1 . . . . . . . . . . . . . . . . . 2 . Haulers Reinforced 4 | . . . . . . . . . . . . . 1 . . . 1 1 . . . . . . . . . . . . . 1 . Stealth | -11 -10 -10 -9 -9 -9 -8 -8 -7 -7 -7 -7 -6 -6 -6 -6 -6 -6 -5 -5 -5 -5 -4 -4 -4 -4 -4 -3 -3 -3 -3 -2 -1 -1 --------- Run | Scr Mat Min Mat Min Exi Min Mat Fac Low Low Dat Pro Fac Ext Cet Arc Hub Fac Upp Upp War Pro Fac Upp Upp Zhi Pro Res Arm Lab Res Acc Com Distress Signals 31 | . 1 . 3 . . . 2 . . . . . 1 4 2 . 1 . . . . 4 . . . . . 1 3 . 7 2 . Communications Jammed 205 | . . . . . . . . . . . . . 8 7 . . 89 . . . 51 . . . . . . 1 30 . . 8 11 Distress Signals 203 | . . . . . . . . . . . . . 8 7 . . 87 . . . 51 . . . . . . 1 30 . . 8 11 Times Spotted 532 | . 6 15 26 25 . 9 33 9 3 4 . 20 5 38 21 4 47 11 4 15 12 25 13 1 2 . 7 11 57 . 29 28 52 Peak Tracking Total 35 | . 3 4 5 4 . 4 4 2 3 2 . 3 2 5 6 2 21 3 2 4 5 5 4 4 5 . 2 7 7 . 6 5 35 Tactical Retreats 13 | . . 1 1 2 . . 1 . . . . . . . 2 . 2 . . . . . . . . . . . 1 . 3 . . Traps | -11 -10 -10 -9 -9 -9 -8 -8 -7 -7 -7 -7 -6 -6 -6 -6 -6 -6 -5 -5 -5 -5 -4 -4 -4 -4 -4 -3 -3 -3 -3 -2 -1 -1 ------- Run | Scr Mat Min Mat Min Exi Min Mat Fac Low Low Dat Pro Fac Ext Cet Arc Hub Fac Upp Upp War Pro Fac Upp Upp Zhi Pro Res Arm Lab Res Acc Com Traps Triggered 19 | . . . . . . . 1 3 . . . . 1 4 . . 1 . . . . . 2 . . . . . 6 . . 1 . Indirectly 5 | . . . . . . . . . . . . . . . . . 1 . . . . . . . . . . . 4 . . . . Trap Hack Attempts 36 | . . . . . . . 36 . . . . . . . . . . . . . . . . . . . . . . . . . . Triggered . | . . . . . . . . . . . . . . . . . . . . . . . . . . . . . . . . . . Disarmed 4 | . 4 . . . . . . . . . . . . . . . . . . . . . . . . . . . . . . . . Reprogrammed 2 | . . . . . . . 2 . . . . . . . . . . . . . . . . . . . . . . . . . . Reused 1 | . . . . . . . 1 . . . . . . . . . . . . . . . . . . . . . . . . . . Traps Extracted . | . . . . . . . . . . . . . . . . . . . . . . . . . . . . . . . . . . Installed . | . . . . . . . . . . . . . . . . . . . . . . . . . . . . . . . . . . Triggered 9 | . . . . . . . 1 . . . . . . . . . . . . . 8 . . . . . . . . . . . . Machines | -11 -10 -10 -9 -9 -9 -8 -8 -7 -7 -7 -7 -6 -6 -6 -6 -6 -6 -5 -5 -5 -5 -4 -4 -4 -4 -4 -3 -3 -3 -3 -2 -1 -1 ---------- Run | Scr Mat Min Mat Min Exi Min Mat Fac Low Low Dat Pro Fac Ext Cet Arc Hub Fac Upp Upp War Pro Fac Upp Upp Zhi Pro Res Arm Lab Res Acc Com Machines Disabled 78 | . 1 1 1 5 . 5 1 2 . . . . . 1 3 1 13 4 . . . 8 4 . 2 1 . 3 14 2 1 4 1 Max in Single Turn 9 | . 1 . 1 3 . 3 . . . . . . . . 1 . 9 1 . . . 1 1 . 2 . . . 1 1 1 1 . Garrison Access 3 | . . . . . . . . . . . . . . . . . . 1 . . . . 1 . . . . . . . 1 . . Network Hub 1 | . . . . . . . . . . . . . . . . . 1 . . . . . . . . . . . . . . . . Energy Cycler 1 | . . . . . . . . . . . . . . . . . . . . . . . . . . . . . . . . 1 . Machines Sabotaged . | . . . . . . . . . . . . . . . . . . . . . . . . . . . . . . . . . . Garrisons Compromised . | . . . . . . . . . . . . . . . . . . . . . . . . . . . . . . . . . . Overloaded Fab Kills . | . . . . . . . . . . . . . . . . . . . . . . . . . . . . . . . . . . Fab Network Shutdowns 1 | . . . . . . . . . . . . . . . . . . . . . . . . . . . . 1 . . . . . Hacking | -11 -10 -10 -9 -9 -9 -8 -8 -7 -7 -7 -7 -6 -6 -6 -6 -6 -6 -5 -5 -5 -5 -4 -4 -4 -4 -4 -3 -3 -3 -3 -2 -1 -1 --------- Run | Scr Mat Min Mat Min Exi Min Mat Fac Low Low Dat Pro Fac Ext Cet Arc Hub Fac Upp Upp War Pro Fac Upp Upp Zhi Pro Res Arm Lab Res Acc Com Machines Accessed 118 | . 3 1 3 . 5 1 11 3 2 . 4 . 2 8 4 . 2 7 1 . 12 . 6 2 . 6 1 8 12 . 2 9 3 Terminals 60 | . 3 1 3 . . 1 8 . . . . . . 8 4 . 2 4 . . . . 4 1 . . 1 4 7 . 1 6 2 Fabricators 9 | . . . . . . . . 1 . . . . . . . . . 1 . . . . . . . . . 3 3 . . 1 . Repair Stations 6 | . . . . . . . . . . . . . 2 . . . . 1 . . . . 1 . . . . . . . . 1 1 Recycling Units 7 | . . . . . . . 2 1 . . . . . . . . . . . . . . . . . . . 1 2 . . 1 . Scanalyzers 2 | . . . . . . . 1 . . . . . . . . . . . . . . . . . . . . . . . 1 . . Garrison Access 3 | . . . . . . . . 1 . . . . . . . . . 1 . . . . 1 . . . . . . . . . . Total Hacks 444 | . 12 4 9 . 49 2 32 6 2 . 25 . 7 22 15 . 7 43 1 . 28 . 19 8 . 19 6 34 37 . 7 37 13 Successful 308 | . 8 . 5 . 49 1 15 2 2 . 25 . 4 9 11 . 5 21 1 . 28 . 12 4 . 19 6 22 24 . 3 20 12 Failed 136 | . 4 4 4 . . 1 17 4 . . . . 3 13 4 . 2 22 . . . . 7 4 . . . 12 13 . 4 17 1 Catastrophic 23 | . . . . . . . 3 . . . . . . 6 1 . 1 1 . . . . 1 1 . . . 2 2 . . 5 . Database Lockouts . | . . . . . . . . . . . . . . . . . . . . . . . . . . . . . . . . . . Manual 159 | . 5 5 2 . 1 2 19 4 . . . . . 17 13 . 2 18 . . 1 . 2 6 . . . 13 18 . . 26 5 Terminals 238 | . 12 4 9 . . 2 26 . . . . . . 22 15 . 7 31 . . . . 15 7 . . 6 16 25 . 3 30 8 Fabricators 35 | . . . . . . . . 2 . . . . . . . . . 3 . . . . . . . . . 17 9 . . 4 . Repair Stations 23 | . . . . . . . . . . . . . 7 . . . . 6 . . . . 3 . . . . . . . . 2 5 Recycling Units 11 | . . . . . . . 4 2 . . . . . . . . . . . . . . . . . . . 1 3 . . 1 . Scanalyzers 6 | . . . . . . . 2 . . . . . . . . . . . . . . . . . . . . . . . 4 . . Garrison Access 6 | . . . . . . . . 2 . . . . . . . . . 3 . . . . 1 . . . . . . . . . . Terminal Hacks 232 | . 8 . 4 . 49 1 10 . 2 . 25 . . 6 7 . 4 13 1 . 28 . 7 4 . 19 6 8 12 . 1 12 5 Record 92 | . . . . . 48 . . . . . 11 . . . 1 . . . . . 18 . . 1 . 7 6 . . . . . . Part Schematic 16 | . . . . . . . . . . . 7 . . . 1 . . . . . . . . 2 . 4 . . 2 . . . . Robot Schematic 4 | . . . . . . . . . . . 4 . . . . . . . . . . . . . . . . . . . . . . Robot Analysis 8 | . 2 . . . . 1 1 . . . . . . . . . . . . . . . . . . 4 . . . . . . . Prototype ID Bank 27 | . 2 . 2 . . . 2 . . . 3 . . . . . . 2 . . 9 . 1 . . 4 . 1 1 . . . . Open Door 8 | . . . . . . . . . 2 . . . . . 1 . . . 1 . 1 . . 1 . . . . 1 . . . 1 Branch Access Points 4 | . . . . . . . 1 . . . . . . . . . . 1 . . . . 1 . . . . 1 . . . . . Emergency Access Points 3 | . . . . . . . . . . . . . . . . . 2 . . . . . . . . . . . . . . . 1 Machine Index 1 | . . . . . . . . . . . . . . . . . . . . . . . . . . . . . . . . 1 . Terminal Index 3 | . . . . . . . . . . . . . . . . . . 1 . . . . . . . . . 1 1 . . . . Fabricator Index 2 | . . . . . . . . . . . . . . . . . . 1 . . . . 1 . . . . . . . . . . Alert Level 21 | . . . 1 . . . 3 . . . . . . 2 2 . 1 1 . . . . 1 . . . . 2 4 . 1 1 2 Unreport Threat 22 | . . . 1 . . . 1 . . . . . . 3 2 . . 2 . . . . 1 . . . . 1 3 . . 7 1 Locate Traps 7 | . 1 . . . . . 1 . . . . . . . . . . 2 . . . . 1 . . . . . . . . 2 . Disarm Traps 1 | . 1 . . . . . . . . . . . . . . . . . . . . . . . . . . . . . . . . Investigation Status 1 | . . . . . . . . . . . . . . . . . . 1 . . . . . . . . . . . . . . . Recall Investigation 3 | . . . . . . . . . . . . . . 1 . . . 1 . . . . . . . . . . . . . 1 . Recall Reinforcements 1 | . . . . . . . 1 . . . . . . . . . . . . . . . . . . . . . . . . . . Hauler Manifests 5 | . 1 . . . . . . . . . . . . . . . 1 1 . . . . 1 . . . . 1 . . . . . Registered Prototypes 1 | . . . . . . . . . . . . . . . . . . . . . . . . . . . . 1 . . . . . Zone Layout 1 | . 1 . . . . . . . . . . . . . . . . . . . . . . . . . . . . . . . . EX-Prototype ID Bank 1 | . . . . . 1 . . . . . . . . . . . . . . . . . . . . . . . . . . . . Fabricator Hacks 14 | . . . . . . . . . . . . . . . . . . 1 . . . . . . . . . 7 4 . . 2 . Load Schematic 8 | . . . . . . . . . . . . . . . . . . 1 . . . . . . . . . 4 2 . . 1 . Build 6 | . . . . . . . . . . . . . . . . . . . . . . . . . . . . 3 2 . . 1 . Repair Station Hacks 16 | . . . . . . . . . . . . . 4 . . . . 4 . . . . 2 . . . . . . . . 2 4 Scan Component 8 | . . . . . . . . . . . . . 2 . . . . 2 . . . . 1 . . . . . . . . 1 2 Repair 8 | . . . . . . . . . . . . . 2 . . . . 2 . . . . 1 . . . . . . . . 1 2 Recycling Unit Hacks 5 | . . . . . . . 1 . . . . . . . . . . . . . . . . . . . . 1 2 . . 1 . Retrieve Components 5 | . . . . . . . 1 . . . . . . . . . . . . . . . . . . . . 1 2 . . 1 . Scanalyzer 4 | . . . . . . . 2 . . . . . . . . . . . . . . . . . . . . . . . 2 . . Insert Component 3 | . . . . . . . 1 . . . . . . . . . . . . . . . . . . . . . . . 2 . . Analyze 1 | . . . . . . . 1 . . . . . . . . . . . . . . . . . . . . . . . . . . Garrison Access Hacks 1 | . . . . . . . . . . . . . . . . . . . . . . . 1 . . . . . . . . . . Seal Access 1 | . . . . . . . . . . . . . . . . . . . . . . . 1 . . . . . . . . . . Unauthorized Hacks 36 | . . . 1 . . . 2 2 . . . . . 3 4 . 1 3 . . . . 2 . . . . 6 6 . . 3 3 Terminals 24 | . . . 1 . . . . . . . . . . 3 4 . 1 3 . . . . 2 . . . . 2 3 . . 2 3 Track 5 | . . . . . . . . . . . . . . . 2 . . . . . . . . . . . . 1 . . . 1 1 Assimilate 2 | . . . . . . . . . . . . . . . . . . 1 . . . . . . . . . . 1 . . . . Botnet 15 | . . . 1 . . . . . . . . . . 2 2 . 1 2 . . . . 2 . . . . 1 2 . . 1 1 Disrupt 2 | . . . . . . . . . . . . . . 1 . . . . . . . . . . . . . . . . . . 1 Fabricators 9 | . . . . . . . . 1 . . . . . . . . . . . . . . . . . . . 4 3 . . 1 . Report 2 | . . . . . . . . . . . . . . . . . . . . . . . . . . . . 1 1 . . . . Prioritize 3 | . . . . . . . . . . . . . . . . . . . . . . . . . . . . 1 1 . . 1 . Siphon 2 | . . . . . . . . . . . . . . . . . . . . . . . . . . . . 1 1 . . . . Haulers 2 | . . . . . . . . 1 . . . . . . . . . . . . . . . . . . . 1 . . . . . Repair Stations . | . . . . . . . . . . . . . . . . . . . . . . . . . . . . . . . . . . Recycling Units 3 | . . . . . . . 2 1 . . . . . . . . . . . . . . . . . . . . . . . . . Tunnel 3 | . . . . . . . 2 1 . . . . . . . . . . . . . . . . . . . . . . . . . Scanalyzers . | . . . . . . . . . . . . . . . . . . . . . . . . . . . . . . . . . . Garrison Access . | . . . . . . . . . . . . . . . . . . . . . . . . . . . . . . . . . . Data Cores Recovered 5 | . . . . . . . 3 . . . . . . . . . . 2 . . . . . . . . . . . . . . . Used 1 | . . . . . . . . . . . . . . . . . . 1 . . . . . . . . . . . . . . . Hacking Detections 75 | . 3 1 3 . . 1 10 3 . . . . 1 8 2 . 2 6 . . . . 4 1 . . . 7 11 . 2 8 2 Full Trace Events 10 | . . . . . . . 1 . . . . . . 1 . . . 2 . . . . 1 1 . . . 1 1 . 1 1 . Feedback Events 2 | . . . . . . . . . . . . . . . . . . . . . . . 1 . . . . . 1 . . . . Corruption 2 | . . . . . . . . . . . . . . . . . . . . . . . 1 . . . . . 1 . . . . Feedback Blocked . | . . . . . . . . . . . . . . . . . . . . . . . . . . . . . . . . . . Robot Schematics Acquired 4 | . . . . . . . . . . . 4 . . . . . . . . . . . . . . . . . . . . . . Robots Built . | . . . . . . . . . . . . . . . . . . . . . . . . . . . . . . . . . . Matter . | . . . . . . . . . . . . . . . . . . . . . . . . . . . . . . . . . . Time . | . . . . . . . . . . . . . . . . . . . . . . . . . . . . . . . . . . Total Robot Build Rating . | . . . . . . . . . . . . . . . . . . . . . . . . . . . . . . . . . . Part Schematics Acquired 17 | . . . . . . . 1 . . . 7 . . . 1 . . . . . . . . 2 . 4 . . 2 . . . . Parts Built 5 | . . . . . . . . . . . . . . . . . . . . . . . . . . . . 3 1 . . 1 . Matter 1494 | . . . . . . . . . . . . . . . . . . . . . . . . . . . . 711 498 . . 285 . Time 468 | . . . . . . . . . . . . . . . . . . . . . . . . . . . . 190 202 . . 76 . Total Part Build Rating 25 | . . . . . . . . . . . . . . . . . . . . . . . . . . . . 15 5 . . 5 . Parts Repaired 8 | . . . . . . . . . . . . . 2 . . . . 2 . . . . 1 . . . . . . . . 1 2 Time 267 | . . . . . . . . . . . . . 54 . . . . 32 . . . . 89 . . . . . . . . 34 58 Parts Recycled . | . . . . . . . . . . . . . . . . . . . . . . . . . . . . . . . . . . Recycled Matter . | . . . . . . . . . . . . . . . . . . . . . . . . . . . . . . . . . . Retrieved Matter . | . . . . . . . . . . . . . . . . . . . . . . . . . . . . . . . . . . Retrieved Components 12 | . . . . . . . 5 . . . . . . . . . . . . . . . . . . . . . 6 . . 1 . Parts Scanalyzed 1 | . . . . . . . 1 . . . . . . . . . . . . . . . . . . . . . . . . . . Part Schematics Acquired 1 | . . . . . . . 1 . . . . . . . . . . . . . . . . . . . . . . . . . . Parts Damaged . | . . . . . . . . . . . . . . . . . . . . . . . . . . . . . . . . . . Bothacking | -11 -10 -10 -9 -9 -9 -8 -8 -7 -7 -7 -7 -6 -6 -6 -6 -6 -6 -5 -5 -5 -5 -4 -4 -4 -4 -4 -3 -3 -3 -3 -2 -1 -1 ------------ Run | Scr Mat Min Mat Min Exi Min Mat Fac Low Low Dat Pro Fac Ext Cet Arc Hub Fac Upp Upp War Pro Fac Upp Upp Zhi Pro Res Arm Lab Res Acc Com Used RIF Installer . | . . . . . . . . . . . . . . . . . . . . . . . . . . . . . . . . . . Robots Hacked 13 | . . . . . 4 . 1 . . . . . . . . . . . . . 3 . . . . 2 . . . . 3 . . Non-combat 5 | . . . . . 3 . 1 . . . . . . . . . . . . . . . . . . . . . . . 1 . . Combat 8 | . . . . . 1 . . . . . . . . . . . . . . . 3 . . . . 2 . . . . 2 . . Robot Hacks Applied 14 | . . . . . 4 . 2 . . . . . . . . . . . . . 3 . . . . 2 . . . . 3 . . parse_system 12 | . . . . . 4 . . . . . . . . . . . . . . . 3 . . . . 2 . . . . 3 . . find_recycling 2 | . . . . . . . 2 . . . . . . . . . . . . . . . . . . . . . . . . . . Relay Couplers Released 4 | . . . . . . . . . . . . . . . . . . 4 . . . . . . . . . . . . . . . Machine Destruction 4 | . . . . . . . . . . . . . . . . . . 4 . . . . . . . . . . . . . . . Robots Rewired 34 | . . . . . . . . . . . . . . 19 . . . . 1 . 5 3 . . . . . . 6 . . . . Allies Hacked . | . . . . . . . . . . . . . . . . . . . . . . . . . . . . . . . . . . Hacks Repelled . | . . . . . . . . . . . . . . . . . . . . . . . . . . . . . . . . . . Allies | -11 -10 -10 -9 -9 -9 -8 -8 -7 -7 -7 -7 -6 -6 -6 -6 -6 -6 -5 -5 -5 -5 -4 -4 -4 -4 -4 -3 -3 -3 -3 -2 -1 -1 -------- Run | Scr Mat Min Mat Min Exi Min Mat Fac Low Low Dat Pro Fac Ext Cet Arc Hub Fac Upp Upp War Pro Fac Upp Upp Zhi Pro Res Arm Lab Res Acc Com Total Allies 41 | . 1 3 . . . . . . . . . 1 . 19 . . . . 1 . 6 3 . . . . . . 7 . . . . Largest Group 11 | . 1 4 4 1 1 1 1 1 1 1 1 2 1 11 10 2 2 1 2 2 7 5 4 2 2 2 2 2 6 1 1 1 1 Highest-Rated Group 550 | . 59 100 101 68 68 68 81 87 87 87 87 181 96 394 369 153 153 142 191 191 550 386 358 257 257 260 262 279 398 188 217 235 243 Highest-Rated Ally 243 | . 59 60 68 68 68 68 81 87 87 87 87 94 96 104 116 121 121 142 142 144 151 153 163 161 161 164 166 183 191 188 217 235 243 Total Orders 47 | . . . . . . . . . . . . . 4 2 . . . 1 . . 16 18 1 . . . . . . . . 5 . STAY 5 | . . . . . . . . . . . . . 1 . . . . . . . . 4 . . . . . . . . . . . GOTO 18 | . . . . . . . . . . . . . . . . . . . . . 8 9 . . . . . . . . . 1 . FOLLOW 3 | . . . . . . . . . . . . . . . . . . . . . . 3 . . . . . . . . . . . EXPLORE 14 | . . . . . . . . . . . . . 3 . . . . . . . 6 . 1 . . . . . . . . 4 . RETURN 7 | . . . . . . . . . . . . . . 2 . . . 1 . . 2 2 . . . . . . . . . . . Ally Attacks 816 | . 9 26 47 28 . 7 29 13 5 7 . 28 7 110 74 6 38 22 3 21 16 51 32 7 8 . 12 14 97 . 29 35 35 Total Damage 39748 | . 95 362 1006 710 . 139 1207 856 168 445 . 1246 282 4355 1528 316 2734 1426 169 819 1137 3530 2241 147 234 115 735 1072 4918 . 1090 4400 2266 Kills 291 | . 1 8 19 11 . 2 19 11 1 3 . 10 5 30 15 3 29 8 3 7 3 22 13 3 1 . 5 6 24 . 4 24 1 Allies Corrupted 1 | . . . . . . . . . . . . . . . . . . . . . . . 1 . . . . . . . . . . Allies Melted 1 | . . . . . . . . . . . . . . 1 . . . . . . . . . . . . . . . . . . . Intel | -11 -10 -10 -9 -9 -9 -8 -8 -7 -7 -7 -7 -6 -6 -6 -6 -6 -6 -5 -5 -5 -5 -4 -4 -4 -4 -4 -3 -3 -3 -3 -2 -1 -1 ------- Run | Scr Mat Min Mat Min Exi Min Mat Fac Low Low Dat Pro Fac Ext Cet Arc Hub Fac Upp Upp War Pro Fac Upp Upp Zhi Pro Res Arm Lab Res Acc Com Robot Analysis Total 8 | . 2 . . . . 1 1 . . . . . . . . . . . . . . . . . . 4 . . . . . . . Derelict Logs Recovered 14 | . . 1 . 1 . . . . 2 3 . 2 . . . . . . 2 1 . 1 . . 1 . . . . . . . . Drone Launches 28 | . . . . . . . . . . . . . 10 3 . . . 1 . . 3 3 1 . . . . . . . . 7 . Drone Recoveries 9 | . . . . . . . . . . . . . . 3 . . . 1 . . 3 2 . . . . . . . . . . . Exploration | -11 -10 -10 -9 -9 -9 -8 -8 -7 -7 -7 -7 -6 -6 -6 -6 -6 -6 -5 -5 -5 -5 -4 -4 -4 -4 -4 -3 -3 -3 -3 -2 -1 -1 ------------- Run | Scr Mat Min Mat Min Exi Min Mat Fac Low Low Dat Pro Fac Ext Cet Arc Hub Fac Upp Upp War Pro Fac Upp Upp Zhi Pro Res Arm Lab Res Acc Com Turns Passed 35540 | 89 295 939 1340 1723 3019 1456 2483 1123 1811 1257 439 1201 468 1791 381 321 574 1316 1551 1302 1049 1623 771 703 751 235 800 668 1274 176 1268 818 525 Spaces Moved 24991 | 52 182 710 626 778 1247 670 1006 535 1194 1036 123 919 177 974 210 171 275 745 1005 870 678 967 885 1049 1198 250 1154 950 1321 208 1588 921 317 Core 8 | 8 . . . . . . . . . . . . . . . . . . . . . . . . . . . . . . . . . Treads 3495 | . . . . . 694 670 1006 535 590 . . . . . . . . . . . . . . . . . . . . . . . . Legs 2893 | 44 182 710 626 778 553 . . . . . . . . . . . . . . . . . . . . . . . . . . . . Wheels 8754 | . . . . . . . . . 604 1036 123 919 177 974 210 171 275 745 1005 870 678 967 . . . . . . . . . . . Hover 9841 | . . . . . . . . . . . . . . . . . . . . . . . 885 1049 1198 250 1154 950 1321 208 1588 921 317 Flight . | . . . . . . . . . . . . . . . . . . . . . . . . . . . . . . . . . . Fastest Speed 48 | 50 120 120 120 210 200 200 200 180 115 115 115 115 115 115 130 140 130 130 140 140 130 130 52 52 52 52 52 52 52 52 52 54 48 Average Speed 115 | 128 120 120 175 210 223 200 200 184 147 115 115 115 119 122 132 140 139 139 140 140 140 145 52 52 52 52 52 52 52 52 55 54 88 Slowest Speed 270 | 200 120 120 210 210 270 200 200 200 180 115 115 115 125 130 140 140 140 140 140 140 150 150 52 52 52 52 52 52 52 52 58 54 127 Overloaded Moves . | . . . . . . . . . . . . . . . . . . . . . . . . . . . . . . . . . . Propulsion Burnouts . | . . . . . . . . . . . . . . . . . . . . . . . . . . . . . . . . . . Robots Hopped 1 | . . . . . . . . . 1 . . . . . . . . . . . . . . . . . . . . . . . . Cave-ins Triggered . | . . . . . . . . . . . . . . . . . . . . . . . . . . . . . . . . . . Exploration Rate (%) 67 | 4 38 97 51 99 94 95 70 11 99 95 75 98 26 90 83 99 35 26 99 97 91 97 21 98 97 61 97 26 56 98 51 24 11 Regions Visited 33 Branch Regions 23 Pre-discovered Areas 11 | . . 1 . . 1 . 2 1 . 1 1 . . . . . . . . 1 . . . . . 3 . . . . . . . Known Exits Taken 23 | . . . . . . . . 1 1 1 1 1 1 1 1 1 1 1 1 1 1 1 1 1 1 1 1 1 . . 1 1 . Unknown Exits Taken 10 | 1 1 1 1 1 1 1 1 . . . . . . . . . . . . . . . . . . . . . 1 1 . . . Scrap Searched 22 | . . 3 . . . 1 . . 2 4 . 2 . . . . . . 2 1 . 1 . 1 3 . 2 . . . . . . Spaces Dug 169 | . . . . 18 . 16 10 12 . 5 . 32 1 . 12 . 3 14 . 1 2 1 4 . 3 . 4 5 7 . 7 11 1 Terrain Destroyed 1534 | . . . 17 128 . 132 14 12 19 9 . 80 1 28 28 . 155 34 2 81 2 7 36 131 295 . 108 6 134 . 23 49 3 Melee 6 | . . . . . . . . 1 . . . 4 1 . . . . . . . . . . . . . . . . . . . . Projectile 103 | . . . . . . . 4 . . . . . . . . . 9 7 . 2 2 7 5 . 5 . 14 6 11 . 11 17 3 AOE 1425 | . . . 17 128 . 132 10 11 19 9 . 76 . 28 28 . 146 27 2 79 . . 31 131 290 . 94 . 123 . 12 32 . Actions | -11 -10 -10 -9 -9 -9 -8 -8 -7 -7 -7 -7 -6 -6 -6 -6 -6 -6 -5 -5 -5 -5 -4 -4 -4 -4 -4 -3 -3 -3 -3 -2 -1 -1 --------- Run | Scr Mat Min Mat Min Exi Min Mat Fac Low Low Dat Pro Fac Ext Cet Arc Hub Fac Upp Upp War Pro Fac Upp Upp Zhi Pro Res Arm Lab Res Acc Com Total 30560 | 66 237 764 759 827 1473 768 1396 615 1239 1088 420 1004 415 1473 271 241 371 977 1121 911 767 1096 1158 1194 1283 350 1306 1105 1862 277 1966 1225 535 Wait 3088 | . 23 31 21 7 195 83 248 18 8 29 298 24 188 143 9 54 34 147 89 8 29 20 188 135 35 68 102 76 301 30 206 176 65 Move 24956 | 51 181 709 625 777 1246 669 1005 534 1191 1035 122 918 176 973 209 170 274 744 1004 869 677 966 884 1048 1197 249 1153 949 1320 207 1587 920 317 Hop 1 | . . . . . . . . . 1 . . . . . . . . . . . . . . . . . . . . . . . . Pick Up 215 | 6 9 2 14 6 7 1 15 6 8 1 . 2 8 14 3 3 3 12 1 . 5 12 15 . . 5 2 9 12 7 13 5 9 Fast Attach 153 | 7 1 . 9 . 4 . 4 4 . 2 . . 4 3 7 1 2 10 3 . 12 8 6 . 6 7 2 9 6 7 21 . 8 Attach 91 | . . 1 1 2 1 . 2 3 3 3 . 2 4 17 4 . 1 3 . . 4 3 7 . . . 2 3 4 . 7 2 12 Detach 32 | . . . 2 . 3 . . . 1 . . . . 5 1 . . 3 1 . 2 1 3 . . . 1 . 1 . 3 . 5 Swap 349 | . . 1 10 4 6 4 18 9 12 7 . 26 5 6 10 3 6 13 4 11 5 22 19 3 3 4 16 12 46 1 26 21 16 Drop 292 | . 10 3 19 2 7 1 18 7 9 3 . 1 8 9 7 4 4 18 4 . 15 14 15 . 6 11 3 18 17 10 36 3 10 Fire 1044 | 2 13 17 58 29 . 9 36 24 3 8 . 25 8 60 21 6 47 27 15 23 18 46 21 8 35 6 25 29 155 15 67 95 93 Melee 17 | . . . . . 4 . 2 4 . . . 6 1 . . . . . . . . . . . . . . . . . . . . Ram . | . . . . . . . . . . . . . . . . . . . . . . . . . . . . . . . . . . Kick . | . . . . . . . . . . . . . . . . . . . . . . . . . . . . . . . . . . Crush 21 | . . . . . . . 12 6 3 . . . . . . . . . . . . . . . . . . . . . . . . Escape Stasis 32 | . . . . . . . . . . . . . 8 24 . . . . . . . . . . . . . . . . . . . Rewire 224 | . . . . . . 1 . . . . . . . 219 . . . . . . . 3 . . 1 . . . . . . . . Trap 36 | . . . . . . . 36 . . . . . . . . . . . . . . . . . . . . . . . . . . Miscellaneous 9 | . . . . . . . . . . . . . 5 . . . . . . . . 1 . . . . . . . . . 3 . Route ------- -11/Scrapyard -10/Materials -10/Mines (discovered 2 exits: *Mat x2) -9/Materials (discovered 2 exits: *Mat / [*Min]) -9/Mines (discovered 3 exits: *Mat x2 / *Exi) -9/Exiles (discovered 2 exits: *Min x2) -8/Mines (discovered 2 exits: *Mat x2) -8/Materials -7/Factory (discovered 2 exits: *Sto / *Low) -7/Lower Caves -7/Lower Caves (discovered 2 exits: *Fac / *Dat) -7/Data Miner -6/Proximity Caves -6/Factory (discovered 3 exits: *Fac / *Low / *Ext) -6/Extension (discovered 3 exits: *Fac x2 / *Cet) -6/Cetus (discovered 2 exits: *Fac / *Arc) -6/Archives (discovered 3 exits: *Fac / *Hub x2) -6/Hub_04(d) (discovered 2 exits: *Fac x2) -5/Factory (discovered 3 exits: *Fac / *Upp x2) -5/Upper Caves -5/Upper Caves (discovered 2 exits: *Fac / *War) -5/Warlord -4/Proximity Caves -4/Factory (discovered 3 exits: *Res / *Upp x2) -4/Upper Caves -4/Upper Caves (discovered 2 exits: *Res / *Zhi) -4/Zhirov -3/Proximity Caves -3/Research (discovered 3 exits: *Arm / *Tes x2) -3/Armory (discovered 3 exits: *Res x2 / *Lab) -3/Lab -2/Research (discovered 3 exits: *Acc x2 / [Qua]) -1/Access -1/Command History --------- Turn | Location | Event 41 | -11/Scrapyard | Discovered new exit (range 15) 90 | -11/Scrapyard | Entered Materials 270 | -10/Materials | Discovered new exit (range 9) 317 | -10/Materials | Build established: Mutant 385 | -10/Materials | Entered Mines 385 | -10/Mines | Accompanied by 1 ally 673 | -10/Mines | Learned location of Zion (-6) 673 | -10/Mines | Assisted by bots powering up and referring to "LRC-V3" 715 | -10/Mines | Discovered new exit (range 5) 1042 | -10/Mines | Discovered new exit (range 5) 1324 | -10/Mines | Entered Materials 1324 | -9/Materials | Accompanied by 4 allies 1324 | -9/Materials | Evolved 2 slots: Utility x2 1713 | -9/Materials | Build established: Scavenger-Mutant 2333 | -9/Materials | Discovered new exit (range 15) 2499 | -9/Materials | Destroyed 7 combat bots 2546 | -9/Materials | Discovered new exit (range 10) 2664 | -9/Materials | Entered Mines 2664 | -9/Mines | Accompanied by 1 ally 2857 | -9/Mines | Discovered new exit (range 7) 2952 | -9/Mines | Discovered new exit (range 14) 2967 | -9/Mines | Received a Rocket Launcher from a helpful Derelict 3099 | -9/Mines | Assembled infested the area 3880 | -9/Mines | Learned Materials trap positions 3905 | -9/Mines | Joined a pair of Derelicts in attacking an 0b10 outpost 4228 | -9/Mines | Build established: Mutant 4228 | -9/Mines | Deemed a non-threat by the Exiles lab entrance 4228 | -9/Mines | Discovered new exit (range 5) 4387 | -9/Mines | Entered Exiles 4387 | -9/Exiles | Accompanied by 1 ally 4452 | -9/Exiles | Discovered new exit (range 14) 4516 | -9/Exiles | Met 8R-AWN 4549 | -9/Exiles | Met EX-HEX 4787 | -9/Exiles | Met EX-DEC 4887 | -9/Exiles | Visited The Gauntlet 5036 | -9/Exiles | Build established: Hauler-Mutant 5283 | -9/Exiles | Met EX-BIN 5820 | -9/Exiles | Aligned with FarCom system 5822 | -9/Exiles | Given EX-Vault access code 5868 | -9/Exiles | Opened EX-Vault 5884 | -9/Exiles | Found Lightpack 2.0 5944 | -9/Exiles | Warned to stay clear of 0b10 Research branches 6805 | -9/Exiles | Discovered new exit (range 10) 7406 | -9/Exiles | Left Exiles lab with Lightpack 2.0 7406 | -9/Exiles | Entered Mines 7406 | -8/Mines | Accompanied by 1 ally 8640 | -8/Mines | Discovered new exit (range 10) 8782 | -8/Mines | Discovered new exit (range 15) 8862 | -8/Mines | Entered Materials 8862 | -8/Materials | Accompanied by 1 ally 8862 | -8/Materials | Evolved 2 slots: Utility x2 8863 | -8/Materials | Loaded intel: 9 trap records 11254 | -8/Materials | Discovered new exit (range 5) 11345 | -8/Materials | Entered Factory 11345 | -7/Factory | Accompanied by 1 ally 11345 | -7/Factory | Evolved 2 slots: Propulsion x1, Utility x1 11805 | -7/Factory | Discovered new exit (range 5) 11825 | -7/Factory | Identified exit to Lower Caves 12335 | -7/Factory | Discovered new exit (range 5) 12342 | -7/Factory | Identified exit to Storage 12468 | -7/Factory | Entered Lower Caves 12468 | -7/Lower Caves | Accompanied by 1 ally 12673 | -7/Lower Caves | Learned Factory stockpile data 12807 | -7/Lower Caves | Build established: Hauler-Skirmisher 13195 | -7/Lower Caves | Discovered new exit (range 15) 13272 | -7/Lower Caves | Learned Factory stockpile data 13490 | -7/Lower Caves | Identified exit to Lower Caves 13576 | -7/Lower Caves | Found Prototype Device 13987 | -7/Lower Caves | Identified Heart of Steel 14279 | -7/Lower Caves | Entered another Lower Caves area 14279 | -7/Lower Caves | Accompanied by 1 ally 14281 | -7/Lower Caves | Build established: Hauler-Mutant 14570 | -7/Lower Caves | Learned Factory emergency access door positions 14684 | -7/Lower Caves | Discovered new exit (range 18) 14900 | -7/Lower Caves | Discovered new exit (range 20) 15237 | -7/Lower Caves | Identified exit to Data Miner 15283 | -7/Lower Caves | Learned Factory stockpile data 15536 | -7/Lower Caves | Entered Data Miner 15536 | -7/Data Miner | Accompanied by 1 ally 15536 | -7/Data Miner | Discovered new exit (range 6) 15542 | -7/Data Miner | Identified exit to Proximity Caves 15558 | -7/Data Miner | Met Data Miner 15583 | -7/Data Miner | Build established: Hauler-Skirmisher 15593 | -7/Data Miner | Learned location of Section 7 (-2) 15593 | -7/Data Miner | Acquired the access code to Warlord's prototype stash 15747 | -7/Data Miner | Received God Mode back door access code from Data Miner 15975 | -7/Data Miner | Entered Proximity Caves 15975 | -6/Proximity Caves | Accompanied by 1 ally 15987 | -6/Proximity Caves | Spotted B-75 Beast 15996 | -6/Proximity Caves | Escorted by Enhanced Grunt 16006 | -6/Proximity Caves | Allies destroyed B-75 Beast 16130 | -6/Proximity Caves | Learned 8 Factory zone layouts 16315 | -6/Proximity Caves | Attracted the attention of an 0b10 checkpoint 16527 | -6/Proximity Caves | Learned Factory emergency access door positions 16651 | -6/Proximity Caves | Build established: Hauler-Mutant 16718 | -6/Proximity Caves | Discovered new exit (range 18) 16734 | -6/Proximity Caves | Identified exit to Factory 17176 | -6/Proximity Caves | Entered Factory 17176 | -6/Factory | Accompanied by 1 ally 17176 | -6/Factory | Evolved 2 slots: Power x1, Utility x1 17233 | -6/Factory | Repaired Arm. Huge Wheel 17244 | -6/Factory | Found Prototype Processor 17270 | -6/Factory | Discovered new exit (range 20) 17314 | -6/Factory | Discovered new exit (range 78) 17339 | -6/Factory | Repaired Arm. Wheel 17422 | -6/Factory | Discovered new exit (range 10) 17459 | -6/Factory | Identified exit to Lower Caves 17559 | -6/Factory | Identified exit to Extension 17644 | -6/Factory | Entered Extension 17644 | -6/Extension | Accompanied by 1 ally 17669 | -6/Extension | Rescued a captive Derelict 17671 | -6/Extension | Rescued a captive Derelict 17674 | -6/Extension | Rescued a captive Derelict 17674 | -6/Extension | Rescued a captive Derelict 17677 | -6/Extension | Rescued a captive Derelict 17678 | -6/Extension | Rescued a captive Derelict 17678 | -6/Extension | Rescued a captive Derelict 17683 | -6/Extension | Rescued a captive Derelict 18344 | -6/Extension | First assault squad dispatched 18367 | -6/Extension | Incoming assault squad redirected 18372 | -6/Extension | Incoming assault squad redirected 18565 | -6/Extension | Spotted B-75 Beast 18576 | -6/Extension | Allies destroyed B-75 Beast 18584 | -6/Extension | Discovered new exit (range 16) 18590 | -6/Extension | Spotted B-75 Beast 18618 | -6/Extension | Allies destroyed B-75 Beast 18655 | -6/Extension | Lost 5 parts (1p2u2w) 18970 | -6/Extension | Extracted ID and sensor layout for unrecognized location from A7's data core 19190 | -6/Extension | Build established: Commander-Mutant 19367 | -6/Extension | Discovered new exit (range 10) 19369 | -6/Extension | Discovered new exit (range 6) 19426 | -6/Extension | Identified exit to Factory 19428 | -6/Extension | Identified exit to Cetus 19435 | -6/Extension | Entered Cetus 19435 | -6/Cetus | Accompanied by 10 allies 19456 | -6/Cetus | Spotted Cetus Guard 19456 | -6/Cetus | Spotted Cetus Guard 19458 | -6/Cetus | Spotted Cetus Guard 19460 | -6/Cetus | Spotted Cetus Guard 19468 | -6/Cetus | Allies destroyed Cetus Guard 19470 | -6/Cetus | Allies destroyed Cetus Guard 19472 | -6/Cetus | Destroyed Cetus Guard 19473 | -6/Cetus | Allies destroyed Cetus Guard 19551 | -6/Cetus | Cetus Manufacturing Module disabled 19596 | -6/Cetus | Found a strange terminal 19650 | -6/Cetus | Discovered new exit (range 20) 19670 | -6/Cetus | Identified Exp. Signal Interpreter 19683 | -6/Cetus | Spotted Cetus Guard 19683 | -6/Cetus | Spotted Cetus Guard 19692 | -6/Cetus | Spotted Cetus Guard 19693 | -6/Cetus | Spotted Cetus Guard 19694 | -6/Cetus | Destroyed Cetus Guard 19698 | -6/Cetus | Allies destroyed Cetus Guard 19707 | -6/Cetus | Destroyed Cetus Guard 19720 | -6/Cetus | Discovered exit to Factory (range 15) 19729 | -6/Cetus | Allies destroyed Cetus Guard 19730 | -6/Cetus | Met Revision 17 19807 | -6/Cetus | Identified exit to Archives 19816 | -6/Cetus | Entered Archives 19816 | -6/Archives | Accompanied by 2 allies 19878 | -6/Archives | Discovered new exit (range 16) 19888 | -6/Archives | Discovered new exit (range 16) 19903 | -6/Archives | Discovered exit to Factory (range 16) 20133 | -6/Archives | Identified exit to Hub_04(d) 20137 | -6/Archives | Entered Hub_04(d) 20137 | -6/Hub_04(d) | Accompanied by 2 allies 20237 | -6/Hub_04(d) | Build established: Hauler-Skirmisher 20256 | -6/Hub_04(d) | Discovered exit to Factory (range 18) 20487 | -6/Hub_04(d) | First assault squad dispatched 20507 | -6/Hub_04(d) | Discovered exit to Factory (range 15) 20684 | -6/Hub_04(d) | Network Hub disabled 20686 | -6/Hub_04(d) | Spotted Lightning 20687 | -6/Hub_04(d) | Build established: Scavenger-Skirmisher 20687 | -6/Hub_04(d) | Spotted Lightning 20687 | -6/Hub_04(d) | Spotted Lightning 20688 | -6/Hub_04(d) | Spotted Lightning 20689 | -6/Hub_04(d) | Spotted Lightning 20694 | -6/Hub_04(d) | Spotted Lightning 20694 | -6/Hub_04(d) | Spotted Lightning 20694 | -6/Hub_04(d) | Spotted Lightning 20694 | -6/Hub_04(d) | Spotted Lightning 20694 | -6/Hub_04(d) | Spotted Lightning 20695 | -6/Hub_04(d) | Spotted Lightning 20695 | -6/Hub_04(d) | Spotted Lightning 20697 | -6/Hub_04(d) | Core integrity fell below 50% 20710 | -6/Hub_04(d) | Core integrity fell below 20% 20711 | -6/Hub_04(d) | Entered Factory 20711 | -5/Factory | Accompanied by 1 ally 20711 | -5/Factory | Evolved 2 slots: Utility x2 20838 | -5/Factory | Found Prototype Launcher 20838 | -5/Factory | Identified Tesla Bomb Launcher 20841 | -5/Factory | Found Tesla Bomb Launcher 21016 | -5/Factory | Build established: Hauler-Skirmisher 21504 | -5/Factory | Identified exit to Upper Caves 21622 | -5/Factory | Incoming investigation squad redirected 21673 | -5/Factory | Discovered new exit (range 14) 21700 | -5/Factory | Identified exit to Factory 21840 | -5/Factory | Repaired Arm. Wheel 21856 | -5/Factory | Repaired Arm. Wheel 22027 | -5/Factory | Entered Upper Caves 22027 | -5/Upper Caves | Accompanied by 1 ally 22314 | -5/Upper Caves | Build established: Hauler-Mutant 22391 | -5/Upper Caves | Learned Factory emergency access door positions 22455 | -5/Upper Caves | Learned Factory interactive machine intel 22530 | -5/Upper Caves | Discovered new exit (range 20) 22874 | -5/Upper Caves | Attracted the attention of an 0b10 checkpoint 23539 | -5/Upper Caves | Identified exit to Upper Caves 23578 | -5/Upper Caves | Entered another Upper Caves area 23578 | -5/Upper Caves | Accompanied by 2 allies 23585 | -5/Upper Caves | Encountered a Warlord checkpoint 23711 | -5/Upper Caves | Discovered exit to Factory (range 14) 24200 | -5/Upper Caves | Spotted B-75 Beast 24713 | -5/Upper Caves | Discovered new exit (range 5) 24718 | -5/Upper Caves | Identified exit to Warlord 24880 | -5/Upper Caves | Entered Warlord 24880 | -5/Warlord | Accompanied by 1 ally 24905 | -5/Warlord | Discovered new exit (range 20) 24927 | -5/Warlord | System corruption cleaned by Quarantine Array 25000 | -5/Warlord | Heart of Steel transformed into Warbot 25396 | -5/Warlord | Warlord's base attacked by MAIN.C 25463 | -5/Warlord | Met Warlord 25482 | -5/Warlord | Opened Warlord's prototype stash 25486 | -5/Warlord | Found Prototype Reactor 25622 | -5/Warlord | Found Prototype Energy Gun 25622 | -5/Warlord | Identified Vortex Rail 25746 | -5/Warlord | Warlord forces counterattacked 25810 | -5/Warlord | Spotted Executioner 25810 | -5/Warlord | Spotted Executioner 25819 | -5/Warlord | Allies destroyed Executioner 25834 | -5/Warlord | Spotted B-86 Titan 25847 | -5/Warlord | Spotted B-86 Titan 25850 | -5/Warlord | Rewired B-86 Titan 25853 | -5/Warlord | Spotted B-75 Beast 25862 | -5/Warlord | Spotted Striker 25906 | -5/Warlord | Identified exit to Proximity Caves 25929 | -5/Warlord | Entered Proximity Caves 25929 | -4/Proximity Caves | Accompanied by 5 allies 25976 | -4/Proximity Caves | Attracted the attention of an 0b10 checkpoint 26224 | -4/Proximity Caves | Spotted B-86 Titan 26320 | -4/Proximity Caves | Allies destroyed B-86 Titan 26489 | -4/Proximity Caves | Attracted the attention of an 0b10 outpost 26875 | -4/Proximity Caves | Found Prototype Launcher 26875 | -4/Proximity Caves | Identified Gui. Missile Launcher 26886 | -4/Proximity Caves | Found Mni. Smartbomb Launcher 27013 | -4/Proximity Caves | Build established: Scavenger-Mutant 27202 | -4/Proximity Caves | Discovered exit to Factory (range 15) 27552 | -4/Proximity Caves | Entered Factory 27552 | -4/Factory | Accompanied by 4 allies 27552 | -4/Factory | Evolved 2 slots: Propulsion x2 27555 | -4/Factory | Loaded intel: 46 interactive machine locations 27723 | -4/Factory | Incoming investigation squad redirected 27988 | -4/Factory | Repaired Hvy. Proton Cannon? 28017 | -4/Factory | Found Quantum Capacitor 28058 | -4/Factory | Discovered new exit (range 5) 28060 | -4/Factory | Identified exit to Research 28062 | -4/Factory | Found Prototype Hackware 28147 | -4/Factory | Discovered new exit (range 9) 28148 | -4/Factory | Identified exit to Upper Caves 28323 | -4/Factory | Entered Upper Caves 28323 | -4/Upper Caves | Accompanied by 2 allies 28324 | -4/Upper Caves | Encountered a Warlord checkpoint 28420 | -4/Upper Caves | Build established: Hauler-Scout 28646 | -4/Upper Caves | Discovered new exit (range 8) 28649 | -4/Upper Caves | Identified exit to Upper Caves 28716 | -4/Upper Caves | Spotted B-86 Titan 29026 | -4/Upper Caves | Entered another Upper Caves area 29026 | -4/Upper Caves | Accompanied by 2 allies 29032 | -4/Upper Caves | Encountered a Warlord checkpoint 29110 | -4/Upper Caves | Discovered exit to Research (range 15) 29305 | -4/Upper Caves | Discovered new exit (range 21) 29665 | -4/Upper Caves | Identified exit to Zhirov 29777 | -4/Upper Caves | Entered Zhirov 29777 | -4/Zhirov | Accompanied by 2 allies 29777 | -4/Zhirov | Discovered new exit (range 3) 29778 | -4/Zhirov | Identified exit to Proximity Caves 29787 | -4/Zhirov | Met Zhirov 29800 | -4/Zhirov | Learned location of Quarantine (-2) 29800 | -4/Zhirov | Learned location of Testing (-3) 29800 | -4/Zhirov | Learned location of Command (-1) 29808 | -4/Zhirov | Zhirov requested help retrieving the SGEMP Prototype 29816 | -4/Zhirov | Found Alien Artifact 29816 | -4/Zhirov | Identified Integrated Reactor 29816 | -4/Zhirov | Installed Integrated Reactor, increased core energy generation (+2%) 29828 | -4/Zhirov | Found Alien Artifact 30012 | -4/Zhirov | Entered Proximity Caves 30012 | -3/Proximity Caves | Accompanied by 2 allies 30367 | -3/Proximity Caves | Build established: Scavenger-Scout 30584 | -3/Proximity Caves | Discovered exit to Research (range 19) 30705 | -3/Proximity Caves | Learned location of 1 exit from Proximity Caves 30705 | -3/Proximity Caves | Learned 8 Factory zone layouts 30705 | -3/Proximity Caves | Learned Factory trap positions 30812 | -3/Proximity Caves | Entered Research 30812 | -3/Research | Accompanied by 2 allies 30812 | -3/Research | Evolved 2 slots: Utility x2 30812 | -3/Research | Identified Exp. Hacking Suite 30813 | -3/Research | Identified exit to Testing 30908 | -3/Research | Fabricated Exp. Sensor Array (x1) 30953 | -3/Research | Fabricated Exp. Terrain Scanner? 31250 | -3/Research | Found Prototype Launcher 31250 | -3/Research | Identified Tactical Quantum Warhead 31272 | -3/Research | Fabricated Exp. Terrain Scanner? 31385 | -3/Research | Identified exit to Armory 31411 | -3/Research | Local fabrication network quarantined 31480 | -3/Research | Entered Armory 31480 | -3/Armory | Accompanied by 1 ally 31497 | -3/Armory | Build established: Hacker-Scout 31620 | -3/Armory | Found Prototype Device 31620 | -3/Armory | Identified EM Disruption Field 31727 | -3/Armory | Fabricated Exp. Signal Interpreter (x1) 31730 | -3/Armory | First assault squad dispatched 31748 | -3/Armory | Incoming assault squad redirected 31801 | -3/Armory | Discovered new exit (range 30) 31970 | -3/Armory | Destroyed 7 combat bots 32055 | -3/Armory | Incoming assault squad redirected 32137 | -3/Armory | Destroyed 10 combat bots 32252 | -3/Armory | Incoming assault squad redirected 32324 | -3/Armory | Incoming assault squad redirected 32497 | -3/Armory | Incoming assault squad redirected 32503 | -3/Armory | Incoming assault squad redirected 32591 | -3/Armory | Discovered new exit (range 28) 32624 | -3/Armory | Discovered new exit (range 28) 32754 | -3/Armory | Entered Lab 32754 | -3/Lab | Accompanied by 1 ally 32754 | -3/Lab | Discovered new exit (range 9) 32760 | -3/Lab | Hidden lab's door opened automatically 32760 | -3/Lab | Sensor layout match revealed 32761 | -3/Lab | Gained access to the hidden lab's interior 32773 | -3/Lab | Unable to decrypt terminal 32775 | -3/Lab | Unable to decrypt terminal 32798 | -3/Lab | Found Integrated Reactor 32798 | -3/Lab | Installed Integrated Reactor, increased core energy generation (+2%) 32821 | -3/Lab | Unable to decrypt terminal 32832 | -3/Lab | Found Prototype Special Weapon 32842 | -3/Lab | Found Prototype Energy Gun 32842 | -3/Lab | Identified Tachyon Dispersion Ray 32845 | -3/Lab | Found Prototype Energy Gun 32845 | -3/Lab | Identified Hyp. EM Gauss Rifle 32852 | -3/Lab | Found Prototype Protection 32852 | -3/Lab | Identified Med. Regenerative Plating 32857 | -3/Lab | Found Deep Network Scanner 32871 | -3/Lab | Found Alien Artifact 32876 | -3/Lab | Found Alien Artifact 32930 | -3/Lab | Entered Research 32930 | -2/Research | Accompanied by 1 ally 32930 | -2/Research | Warlord forces began assault on 0b10 32930 | -2/Research | Evolved 2 slots: Utility x2 32982 | -2/Research | Met up with Warlord 32985 | -2/Research | Identified Gui. Remote Datajack 33004 | -2/Research | Identified Transdimensional Reconstructor (x2) 33004 | -2/Research | Identified Core Expander 33004 | -2/Research | Installed Core Expander, added new Utility slot 33040 | -2/Research | Research machine network offline 33130 | -2/Research | Discovered new exit (range 13) 33140 | -2/Research | Found Hvy. Reflective Plating 33142 | -2/Research | Identified exit to Access 33225 | -2/Research | Found Prototype Device 33225 | -2/Research | Identified Exp. Focal Shield 33292 | -2/Research | Build established: Hauler-Scout 33338 | -2/Research | Borebot progress halted 33357 | -2/Research | Found Prototype Processor 33357 | -2/Research | Identified Exp. Core Analyzer 33376 | -2/Research | Discovered new exit (range 27) 33427 | -2/Research | Borebot progress halted 33517 | -2/Research | Borebot progress halted 33519 | -2/Research | Borebot progress halted 33698 | -2/Research | Spotted Striker 33699 | -2/Research | Spotted Striker 33703 | -2/Research | Destroyed Striker 33710 | -2/Research | Destroyed Striker 33767 | -2/Research | Spotted Executioner 33768 | -2/Research | Destroyed Executioner 33778 | -2/Research | Found Exp. Targeting Computer 33867 | -2/Research | Discovered exit to Access (range 9) 33879 | -2/Research | Warlord destroyed during the assault 34041 | -2/Research | Spotted Executioner 34055 | -2/Research | Allies destroyed Executioner 34198 | -2/Research | Entered Access 34198 | -1/Access | Accompanied by 1 ally 34198 | -1/Access | Evolved 2 slots: Power x1, Utility x1 34199 | -1/Access | Identified Vortex Chain Reactor 34309 | -1/Access | Energy Cycler disabled 34489 | -1/Access | Build established: Generator-Scout 34592 | -1/Access | Repaired Cmb. Antigrav System 34698 | -1/Access | First assault squad dispatched 34866 | -1/Access | Fabricated Exp. Terrain Scan Processor? 34939 | -1/Access | Discovered new exit (range 8) 34942 | -1/Access | Identified exit to Command 35005 | -1/Access | Incoming assault squad redirected 35016 | -1/Access | Entered Command 35016 | -1/Command | Accompanied by 1 ally 35087 | -1/Command | Repaired Imp. Remote Force Field 35123 | -1/Command | Repaired Cld. Antigrav System 35147 | -1/Command | Spotted M Guard 35147 | -1/Command | Spotted M Guard 35147 | -1/Command | Spotted Combat Programmer 35147 | -1/Command | Spotted Combat Programmer 35165 | -1/Command | System corruption reached 10% 35167 | -1/Command | Destroyed M Guard 35173 | -1/Command | Destroyed M Guard 35182 | -1/Command | Destroyed Combat Programmer 35183 | -1/Command | Destroyed Combat Programmer 35183 | -1/Command | Destroyed all MAIN.C guards 35190 | -1/Command | Found Prototype Device 35190 | -1/Command | Identified Thermal Barrier 35194 | -1/Command | Found Prototype Device 35194 | -1/Command | Identified AEGIS Remote Shield 35197 | -1/Command | Found Prototype Reactor 35197 | -1/Command | Identified Zero-point Reactor 35200 | -1/Command | Lost 3 parts (2u1w) 35203 | -1/Command | Found Zero-point Reactor 35216 | -1/Command | Found Prototype Protection 35216 | -1/Command | Identified Hvy. Regenerative Plating 35219 | -1/Command | Found Prototype Energy Cannon 35219 | -1/Command | Identified Cld. Nova Cannon 35231 | -1/Command | Found Exp. Targeting Computer 35385 | -1/Command | Build established: Generator-Mutant 35428 | -1/Command | Met MAIN.C 35437 | -1/Command | Found Meganuke 35438 | -1/Command | 0b10 Conduit disabled 35439 | -1/Command | Triggered Meganuke 35474 | -1/Command | Allies destroyed MAIN.C Shell 35474 | -1/Command | MAIN.C activated Command garrisons 35516 | -1/Command | Destroyed 12 combat bots 35526 | -1/Command | Core integrity fell below 50% 35532 | -1/Command | Failed to warp due to unstable space 35537 | -1/Command | Core integrity fell below 20% 35541 | -1/Command | Core destroyed Last Messages --------------- 35535_ P-80 Master resets L-61 Swordsman, system corruption cleaned. 35535_ Penetrated by Slug. Player 2: "If you spot a good propulsion unit let me know, yeah?" 35536_ Penetrated by Slug. 35536_ Exp. Cooling System destroyed. 35536_ K-01 Serf collects debris. 35537_ P-80 Master resets S-43 Plague, system corruption cleaned. 35537_ Penetrated by Slug. 35537_ Player 2 removes Hcp. Storage Unit. 35538_ System corrupted: Matter fused (-8). 35538_ Player 2 drops Hcp. Storage Unit. 35538_ Critical hit. 35538_ Zero-point Reactor destroyed. 35538_ AEGIS Remote Shield destroyed. 35538_ Knocked back. 35539_ Penetrated by Slug. 35539_ Slug penetrates Player 2. 35540_ Slug penetrates S-43 Plague. 35540_ K-01 Serf collects debris. 35541_ Slug penetrates Player 2. Map ----- +----------------------------------------------------+ | ???????????????????????????????????? " " | | ????????????????????????????????? " " | | ??????????????????????????????? " " | | ????????????????????????????? " " | | ???????????????????????????? " " | | ??????????????????????????? " " | | ??????????????????????????"""""""""""""""" #" " | | ???????????????????????? " " | | ???????????????????????""""""""""""""""" " | | ?????????????????????? """"""" | | ????????????????????? " " | | ???????????????????? """""" | | ?????????????????? = " | | ???????????????? ; !%!"hg | | ?????????????? ; ; ! ggp | | ?????????????? ; ; h!"g"""" | | ????????????? ; ; l" " | | ????????????? ; ; M !"""""""" | | ???????????? ; ; !!l" " " " | | ???????????? ; ; " " " " | | ???????????? ; ; " " " " | | ??????????? ; ; ; " " " | | ??????????? ; ; ; " " " | | ???????????#;;;;;; @; " " " | | ?????????? " " | | ?????????? @ " " | | ?????????? *= " " | | ????????????#;;;;; h gs g=p[== " " | | ????????????## ; ; g h h%#%#%[ " " | | ?????????????# ; ; pg *%%#%#** " " | | ?????????????##; ;;;;;;;;;;;;;;;;;; %[%#%=%= " "? | | ??????????????#; %=###*[= "??? | | ??????????????#;;;;;;;;;;;;;;;;;;;; [ ? ??????? | | ??????????????## ????????? | | ???????????????# ????????? | | ???????????????## ????????? | | ????????????????# ??????????? | | ????????????????# ????????????? | | ?????????????????? ??????????????? | | ????????????????????? ?????????????????? | | ??????????????????????? i??????????????????? | | ?????????????????????????????????????????????????? | | ?????????????????????????????????????????????????? | | ?????????????????????????????????????????????????? | | ?????????????????????????????????????????????????? | | ?????????????????????????????????????????????????? | | ?????????????????????????????????????????????????? | | ?????????????????????????????????????????????????? | | ?????????????????????????????????????????????????? | | ?????????????????????????????????????????????????? | +----------------------------------------------------+ Best States ------------- Heat Dissipation 152 Energy Generation 103 Energy Capacity 3640 Matter Stores 300 Matter Capacity 300 Sight Range 16 Robot Scan Range 30 Terrain Scan Range 30 Terrain Scan Density 210 Jamming Range 16 Additional Mass Support 16 Armor Coverage 825 Resistance: KI 30 Resistance: TH 50 Resistance: EM 50 Power Shielding 90 Evasion (%) 68 Targeting Accuracy 12 Armor Integrity Analysis 66 Recoil Reduction 3 Offensive Hacking 41 Item Schematics ----------------- Hcp. Storage Unit | -8/Materials | Scanalyzed Combat Drone Bay | -7/Data Miner | Free Lgt. Regenerative Plating | -7/Data Miner | Free Exp. Cesium-ion Thruster | -7/Data Miner | Free Triangulator | -7/Data Miner | Free Exp. Sensor Array | -7/Data Miner | Free Tactical Coordination Suite | -7/Data Miner | Free Plasma Sword | -7/Data Miner | Free Arm. Huge Wheel | -6/Cetus | Hacked Exp. Terrain Scanner | -4/Upper Caves | Hacked Exp. Terrain Scan Processor | -4/Upper Caves | Hacked Assault Drone Bay | -4/Zhirov | Free Exp. Heat Sink | -4/Zhirov | Free Exp. Optical Array | -4/Zhirov | Free Imp. Arc Thrower | -4/Zhirov | Free Exp. Signal Interpreter | -3/Armory | Hacked Exp. Targeting Computer | -3/Armory | Hacked Robot Schematics ------------------ S-27 Virus | -7/Data Miner | Free G-50 Soldier | -7/Data Miner | Free G-67 Veteran | -7/Data Miner | Free I-36 Angel | -7/Data Miner | Free Fabricated ------------ Exp. Sensor Array | x1 | -3/Research Exp. Terrain Scanner | x1 | -3/Research Exp. Terrain Scanner | x1 | -3/Research Exp. Signal Interpreter | x1 | -3/Armory Exp. Terrain Scan Processor | x1 | -1/Access Alien Tech Used ----------------- Integrated Reactor Core Expander Transdimensional Reconstructor Achievements -------------- None Challenges ------------ None Player 2 | -11 -10 -10 -9 -9 -9 -8 -8 -7 -7 -7 -7 -6 -6 -6 -6 -6 -6 -5 -5 -5 -5 -4 -4 -4 -4 -4 -3 -3 -3 -3 -2 -1 -1 ---------- Run | Scr Mat Min Mat Min Exi Min Mat Fac Low Low Dat Pro Fac Ext Cet Arc Hub Fac Upp Upp War Pro Fac Upp Upp Zhi Pro Res Arm Lab Res Acc Com Slots Evolved 18 | . . 2 . . . 2 2 . . . . 2 . . . . 2 . . . . 2 . . . . 2 . . 2 2 . . Power 3 | . . . . . . . 1 . . . . . . . . . . . . . . 1 . . . . . . . 1 . . . Propulsion 3 | . . 1 . . . 1 . . . . . . . . . . . . . . . . . . . . . . . 1 . . . Utility 9 | . . . . . . . 1 . . . . 2 . . . . 2 . . . . . . . . . 2 . . . 2 . . Weapon 3 | . . 1 . . . 1 . . . . . . . . . . . . . . . 1 . . . . . . . . . . . Parts Attached 209 | . 8 2 9 3 1 . 18 3 . 1 . . 4 6 4 6 11 25 1 1 5 5 13 . . 3 5 4 28 1 17 13 12 Parts Lost 62 | . . . . 1 . . . . . . . . . . . . 16 1 . . . . . . . . . . 11 . . 1 32 Damage Taken 16104 | . 43 174 117 550 . 50 359 50 . 111 . 237 13 237 241 67 2266 332 58 418 . 653 81 . 103 . 119 175 3257 . 324 569 5500 Core 2414 | . 10 16 33 35 . 25 28 16 . . . . 6 18 27 . 497 21 . 20 . 31 . . 12 . 23 30 396 . . 26 1144 Player 2/Cogmind (%) 67 | . 100 33 49 47 . 44 51 50 . . . . 15 12 49 . 86 100 . 100 . 36 . . 100 . 41 68 94 . . 100 74 Absorbed by Shields 4357 | . . . . . . . . . . . . . . . . . . . . . . . . . . . 95 182 1229 . 314 543 1994 Damage Inflicted 29179 | . 95 124 723 710 . 139 1207 856 168 445 . 685 282 2821 715 273 2609 1426 169 745 205 1522 288 51 201 115 537 799 3513 . 1090 4400 2266 Player 2/Cogmind (%) 37 | . 27 33 36 35 . 10 48 50 25 62 . 26 43 53 42 62 52 43 19 35 67 42 19 4 4 41 20 42 34 . 34 58 30 Combat Hostiles Destroyed 145 | . 1 2 6 11 . 2 14 6 1 3 . 4 3 9 2 1 15 6 2 7 . 7 1 . 1 . 4 4 16 . 4 12 1 Player 2/Cogmind (%) 33 | . 25 20 30 39 . 13 58 66 33 60 . 22 60 36 18 50 75 46 66 43 . 58 11 . 4 . 30 44 28 . 22 37 5 Game ------ Seed GodMakeshiftGun Manual? 0 Play Time 08:15:02 Cumulative 1225.2 hours Start 2020.06.12 @ 13:42:25 End 2020.06.13 @ 16:20:42 Sessions 13 Manual Loads 0 Difficulty Rogue Special Mode AFD2020/Player2 Game No. 402 Rogue 402 Adventurer 0 Explorer 0 Win Type - Total 256 Types 214/7/14/4/3/2/12 Lore% 99 Gallery% 101 Achievement% 94 Wizard Run 0 Options --------- ASCII 0 Keyboard 0 Movement Numpad Keybinds 0 Fullscreen 1 Font 18/Terminus Map View 76x50 Tactical HUD 1 Map Filters NONE Filters NONE Steam 1 RUN: c65f3491-23b5-4980-8f4e-e0321ff5dd0f